{"text_format":"3","workbook":"xlsx","n_sheets":4,"sheets":["Мониторинг оценок","Ваша успеваемость","Параметры","Вычисления"],"not_rendered":{"defined_names":3,"comments":1},"read":"whole","date_system":"1900"}

{"sheet":"Мониторинг оценок","index":0,"n_rows":14,"n_cols":6,"rows_kept":14}
[null,"Введите здесь свои оценки"]
[]
[null,null,"Предмет","Тип","Описание","Оценка"]
[null,null,"Современный французский язык","Домашнее задание","История Второй мировой войны",{"v":0.8,"d":"80%"}]
[null,null,"Продвинутое программирование на Java","Середина семестра",null,{"v":0.75,"d":"75%"}]
[null,null,"Испанский","Домашнее задание",null,{"v":0.5,"d":"50%"}]
[null,null,"Теоретическая физика","Домашнее задание",null,{"v":0.95,"d":"95%"}]
[null,null,"Современный французский язык","Домашнее задание","История Первой мировой войны",{"v":0.9,"d":"90%"}]
[null,null,"Современный французский язык","Домашнее задание","Страницы: 30–41",{"v":0.8,"d":"80%"}]
[null,null,"Сочинение","Эссе","Курсовая работа",{"v":0.95,"d":"95%"}]
[null,null,"Математика 1","Домашнее задание","Страницы 21 и 26",{"v":0.8,"d":"80%"}]
[null,null,"Математика 2","Домашнее задание","Страницы 15 и 18",{"v":0.85,"d":"85%"}]
[null,null,"Математика 1","Домашнее задание","Страницы: 34–36",{"v":0.8,"d":"80%"}]
[null,null,"Математика 2","Тест",null,{"v":0.95,"d":"95%"}]

{"sheet":"Ваша успеваемость","index":1,"n_rows":31,"n_cols":8,"rows_kept":31}
[null,"Ваша успеваемость"]
[]
[null,null,"Итоги"]
[null,null,{"$f":"\"Часы: \"&SUM(тблКлассы[Кредитные часы])","v":"Часы: 24"},{"$f":"AVERAGE(D7:D31)","v":{"v":0.8104761904761906,"d":"81%"}},{"$f":"AVERAGE(E7:E31)","v":{"v":2.7142857142857144,"d":"2.71"}},{"$f":"SUM(F7:F31)","v":{"v":2.625,"d":"2.63"}},{"$f":"IFERROR(HLOOKUP(D4,СписСреднийБалл,2),\"\")","v":"B-"}]
[]
[null,null,"Предметы","%","Средний балл","Средневзвешенный балл","Буква","Общая успеваемость"]
[null,null,{"$f":"Вычисления!C6","v":"Современный французский язык"},{"$f":"Вычисления!AL6","v":{"v":0.8333333333333334,"d":"83%"}},{"$f":"Вычисления!AM6","v":{"v":3,"d":"3.00"}},{"$f":"IFERROR(E7*Параметры!D9/SUM(тблКлассы[Кредитные часы]),\"\")","v":{"v":0.375,"d":"0.38"}},{"$f":"Вычисления!AN6","v":"B"}]
[null,null,{"$f":"Вычисления!C7","v":"Теоретическая физика"},{"$f":"Вычисления!AL7","v":{"v":0.95,"d":"95%"}},{"$f":"Вычисления!AM7","v":{"v":4,"d":"4.00"}},{"$f":"IFERROR(E8*Параметры!D10/SUM(тблКлассы[Кредитные часы]),\"\")","v":{"v":0.5,"d":"0.50"}},{"$f":"Вычисления!AN7","v":"A"}]
[null,null,{"$f":"Вычисления!C8","v":"Математика 1"},{"$f":"Вычисления!AL8","v":{"v":0.8000000000000002,"d":"80%"}},{"$f":"Вычисления!AM8","v":2.67},{"$f":"IFERROR(E9*Параметры!D11/SUM(тблКлассы[Кредитные часы]),\"\")","v":{"v":0.445,"d":"0.45"}},{"$f":"Вычисления!AN8","v":"B-"}]
[null,null,{"$f":"Вычисления!C9","v":"Математика 2"},{"$f":"Вычисления!AL9","v":{"v":0.89,"d":"89%"}},{"$f":"Вычисления!AM9","v":3.33},{"$f":"IFERROR(E10*Параметры!D12/SUM(тблКлассы[Кредитные часы]),\"\")","v":{"v":0.555,"d":"0.56"}},{"$f":"Вычисления!AN9","v":"B+"}]
[null,null,{"$f":"Вычисления!C10","v":"Продвинутое программирование на Java"},{"$f":"Вычисления!AL10","v":{"v":0.7500000000000001,"d":"75%"}},{"$f":"Вычисления!AM10","v":{"v":2,"d":"2.00"}},{"$f":"IFERROR(E11*Параметры!D13/SUM(тблКлассы[Кредитные часы]),\"\")","v":{"v":0.4166666666666667,"d":"0.42"}},{"$f":"Вычисления!AN10","v":"C"}]
[null,null,{"$f":"Вычисления!C11","v":"Испанский"},{"$f":"Вычисления!AL11","v":{"v":0.5,"d":"50%"}},{"$f":"Вычисления!AM11","v":{"v":0,"d":"0.00"}},{"$f":"IFERROR(E12*Параметры!D14/SUM(тблКлассы[Кредитные часы]),\"\")","v":{"v":0,"d":"0.00"}},{"$f":"Вычисления!AN11","v":"F"}]
[null,null,{"$f":"Вычисления!C12","v":"Сочинение"},{"$f":"Вычисления!AL12","v":{"v":0.95,"d":"95%"}},{"$f":"Вычисления!AM12","v":{"v":4,"d":"4.00"}},{"$f":"IFERROR(E13*Параметры!D15/SUM(тблКлассы[Кредитные часы]),\"\")","v":{"v":0.3333333333333333,"d":"0.33"}},{"$f":"Вычисления!AN12","v":"A"}]
[null,null,{"$f":"Вычисления!C13","v":""},{"$f":"Вычисления!AL13","v":""},{"$f":"Вычисления!AM13","v":""},{"$f":"IFERROR(E14*Параметры!D16/SUM(тблКлассы[Кредитные часы]),\"\")","v":""},{"$f":"Вычисления!AN13","v":""}]
[null,null,{"$f":"Вычисления!C14","v":""},{"$f":"Вычисления!AL14","v":""},{"$f":"Вычисления!AM14","v":""},{"$f":"IFERROR(E15*Параметры!D17/SUM(тблКлассы[Кредитные часы]),\"\")","v":""},{"$f":"Вычисления!AN14","v":""}]
[null,null,{"$f":"Вычисления!C15","v":""},{"$f":"Вычисления!AL15","v":""},{"$f":"Вычисления!AM15","v":""},{"$f":"IFERROR(E16*Параметры!D18/SUM(тблКлассы[Кредитные часы]),\"\")","v":""},{"$f":"Вычисления!AN15","v":""}]
[null,null,{"$f":"Вычисления!C16","v":""},{"$f":"Вычисления!AL16","v":""},{"$f":"Вычисления!AM16","v":""},{"$f":"IFERROR(E17*Параметры!D19/SUM(тблКлассы[Кредитные часы]),\"\")","v":""},{"$f":"Вычисления!AN16","v":""}]
[null,null,{"$f":"Вычисления!C17","v":""},{"$f":"Вычисления!AL17","v":""},{"$f":"Вычисления!AM17","v":""},{"$f":"IFERROR(E18*Параметры!D20/SUM(тблКлассы[Кредитные часы]),\"\")","v":""},{"$f":"Вычисления!AN17","v":""}]
[null,null,{"$f":"Вычисления!C18","v":""},{"$f":"Вычисления!AL18","v":""},{"$f":"Вычисления!AM18","v":""},{"$f":"IFERROR(E19*Параметры!D21/SUM(тблКлассы[Кредитные часы]),\"\")","v":""},{"$f":"Вычисления!AN18","v":""}]
[null,null,{"$f":"Вычисления!C19","v":""},{"$f":"Вычисления!AL19","v":""},{"$f":"Вычисления!AM19","v":""},{"$f":"IFERROR(E20*Параметры!D22/SUM(тблКлассы[Кредитные часы]),\"\")","v":""},{"$f":"Вычисления!AN19","v":""}]
[null,null,{"$f":"Вычисления!C20","v":""},{"$f":"Вычисления!AL20","v":""},{"$f":"Вычисления!AM20","v":""},{"$f":"IFERROR(E21*Параметры!D23/SUM(тблКлассы[Кредитные часы]),\"\")","v":""},{"$f":"Вычисления!AN20","v":""}]
[null,null,{"$f":"Вычисления!C21","v":""},{"$f":"Вычисления!AL21","v":""},{"$f":"Вычисления!AM21","v":""},{"$f":"IFERROR(E22*Параметры!D24/SUM(тблКлассы[Кредитные часы]),\"\")","v":""},{"$f":"Вычисления!AN21","v":""}]
[null,null,{"$f":"Вычисления!C22","v":""},{"$f":"Вычисления!AL22","v":""},{"$f":"Вычисления!AM22","v":""},{"$f":"IFERROR(E23*Параметры!D25/SUM(тблКлассы[Кредитные часы]),\"\")","v":""},{"$f":"Вычисления!AN22","v":""}]
[null,null,{"$f":"Вычисления!C23","v":""},{"$f":"Вычисления!AL23","v":""},{"$f":"Вычисления!AM23","v":""},{"$f":"IFERROR(E24*Параметры!D26/SUM(тблКлассы[Кредитные часы]),\"\")","v":""},{"$f":"Вычисления!AN23","v":""}]
[null,null,{"$f":"Вычисления!C24","v":""},{"$f":"Вычисления!AL24","v":""},{"$f":"Вычисления!AM24","v":""},{"$f":"IFERROR(E25*Параметры!D27/SUM(тблКлассы[Кредитные часы]),\"\")","v":""},{"$f":"Вычисления!AN24","v":""}]
[null,null,{"$f":"Вычисления!C25","v":""},{"$f":"Вычисления!AL25","v":""},{"$f":"Вычисления!AM25","v":""},{"$f":"IFERROR(E26*Параметры!D28/SUM(тблКлассы[Кредитные часы]),\"\")","v":""},{"$f":"Вычисления!AN25","v":""}]
[null,null,{"$f":"Вычисления!C26","v":""},{"$f":"Вычисления!AL26","v":""},{"$f":"Вычисления!AM26","v":""},{"$f":"IFERROR(E27*Параметры!D29/SUM(тблКлассы[Кредитные часы]),\"\")","v":""},{"$f":"Вычисления!AN26","v":""}]
[null,null,{"$f":"Вычисления!C27","v":""},{"$f":"Вычисления!AL27","v":""},{"$f":"Вычисления!AM27","v":""},{"$f":"IFERROR(E28*Параметры!D30/SUM(тблКлассы[Кредитные часы]),\"\")","v":""},{"$f":"Вычисления!AN27","v":""}]
[null,null,{"$f":"Вычисления!C28","v":""},{"$f":"Вычисления!AL28","v":""},{"$f":"Вычисления!AM28","v":""},{"$f":"IFERROR(E29*Параметры!D31/SUM(тблКлассы[Кредитные часы]),\"\")","v":""},{"$f":"Вычисления!AN28","v":""}]
[null,null,{"$f":"Вычисления!C29","v":""},{"$f":"Вычисления!AL29","v":""},{"$f":"Вычисления!AM29","v":""},{"$f":"IFERROR(E30*Параметры!D32/SUM(тблКлассы[Кредитные часы]),\"\")","v":""},{"$f":"Вычисления!AN29","v":""}]
[null,null,{"$f":"Вычисления!C30","v":""},{"$f":"Вычисления!AL30","v":""},{"$f":"Вычисления!AM30","v":""},{"$f":"IFERROR(E31*Параметры!D33/SUM(тблКлассы[Кредитные часы]),\"\")","v":""},{"$f":"Вычисления!AN30","v":""}]

{"sheet":"Параметры","index":2,"n_rows":15,"n_cols":16,"rows_kept":15,"merged":[[5,2,5,15]]}
[null,"Параметры"]
[null,null,"Сопоставление оценок и среднего балла"]
[null,null,"Процент",{"v":0,"d":"0%"},{"v":0.6,"d":"60%"},{"v":0.63,"d":"63%"},{"v":0.67,"d":"67%"},{"v":0.7,"d":"70%"},{"v":0.73,"d":"73%"},{"v":0.77,"d":"77%"},{"v":0.8,"d":"80%"},{"v":0.83,"d":"83%"},{"v":0.87,"d":"87%"},{"v":0.9,"d":"90%"},{"v":0.93,"d":"93%"},{"v":0.97,"d":"97%"}]
[null,null,"Баллы в буквах","F","D-","D","D+","C-","C","C+","B-","B","B+","A-","A","A+"]
[null,null,"Средний балл",0,0.67,1,1.33,1.67,2,2.33,2.67,3,3.33,3.67,4,4]
[]
[null,null,"Взвешенные оценки для 25 предметов"]
[null,null,"Предметы, которые вы изучаете","Кредитные часы","Домашнее задание","Эссе","Тест","Проект","Середина семестра","Последний экзамен","Другое","% от общего значения"]
[null,null,"Современный французский язык",{"v":3,"d":"3.0"},{"v":0.1,"d":"10%"},{"v":0.15,"d":"15%"},{"v":0.15,"d":"15%"},{"v":0.1,"d":"10%"},{"v":0.2,"d":"20%"},{"v":0.3,"d":"30%"},null,{"$f":"SUM(тблКлассы[[#This Row],[Домашнее задание]:[Другое]])","v":{"v":1,"d":"100%"}}]
[null,null,"Теоретическая физика",{"v":3,"d":"3.0"},{"v":0.15,"d":"15%"},{"v":0.15,"d":"15%"},{"v":0.1,"d":"10%"},{"v":0.1,"d":"10%"},{"v":0.15,"d":"15%"},{"v":0.3,"d":"30%"},{"v":0.05,"d":"5%"},{"$f":"SUM(тблКлассы[[#This Row],[Домашнее задание]:[Другое]])","v":{"v":1,"d":"100%"}}]
[null,null,"Математика 1",{"v":4,"d":"4.0"},{"v":0.1,"d":"10%"},{"v":0.15,"d":"15%"},{"v":0.15,"d":"15%"},{"v":0.1,"d":"10%"},{"v":0.2,"d":"20%"},{"v":0.3,"d":"30%"},null,{"$f":"SUM(тблКлассы[[#This Row],[Домашнее задание]:[Другое]])","v":{"v":1,"d":"100%"}}]
[null,null,"Математика 2",{"v":4,"d":"4.0"},{"v":0.15,"d":"15%"},{"v":0.15,"d":"15%"},{"v":0.1,"d":"10%"},{"v":0.1,"d":"10%"},{"v":0.15,"d":"15%"},{"v":0.3,"d":"30%"},{"v":0.05,"d":"5%"},{"$f":"SUM(тблКлассы[[#This Row],[Домашнее задание]:[Другое]])","v":{"v":1,"d":"100%"}}]
[null,null,"Продвинутое программирование на Java",{"v":5,"d":"5.0"},{"v":0.15,"d":"15%"},{"v":0.15,"d":"15%"},{"v":0.1,"d":"10%"},{"v":0.1,"d":"10%"},{"v":0.2,"d":"20%"},{"v":0.3,"d":"30%"},null,{"$f":"SUM(тблКлассы[[#This Row],[Домашнее задание]:[Другое]])","v":{"v":1,"d":"100%"}}]
[null,null,"Испанский",{"v":3,"d":"3.0"},{"v":0.1,"d":"10%"},{"v":0.15,"d":"15%"},{"v":0.17,"d":"17%"},{"v":0.13,"d":"13%"},{"v":0.2,"d":"20%"},{"v":0.2,"d":"20%"},{"v":0.05,"d":"5%"},{"$f":"SUM(тблКлассы[[#This Row],[Домашнее задание]:[Другое]])","v":{"v":1,"d":"100%"}}]
[null,null,"Сочинение",{"v":2,"d":"2.0"},{"v":0.15,"d":"15%"},{"v":0.15,"d":"15%"},{"v":0.12,"d":"12%"},{"v":0.15,"d":"15%"},{"v":0.15,"d":"15%"},{"v":0.25,"d":"25%"},{"v":0.03,"d":"3%"},{"$f":"SUM(тблКлассы[[#This Row],[Домашнее задание]:[Другое]])","v":{"v":1,"d":"100%"}}]

{"sheet":"Вычисления","index":3,"n_rows":657,"n_cols":40,"rows_kept":657,"hidden":true}
[null,"Вычисления"]
[null,null,"На этом листе вычисляются оценки и средний балл, он должен оставаться скрытым. Любые изменения этого листа могут привести к ошибкам."]
[]
[null,null,"Список для текущего предмета","Оценки (из 1)",{"$nulls":24},"Вычисление оценок"]
[null,null,"Предмет",1,2,3,4,5,6,7,8,9,10,11,12,13,14,15,16,17,18,19,20,21,22,23,24,25,{"$f":"тблКлассы[[#Headers],[Домашнее задание]]","v":"Домашнее задание"},{"$f":"тблКлассы[[#Headers],[Эссе]]","v":"Эссе"},{"$f":"тблКлассы[[#Headers],[Тест]]","v":"Тест"},{"$f":"тблКлассы[[#Headers],[Проект]]","v":"Проект"},{"$f":"тблКлассы[[#Headers],[Середина семестра]]","v":"Середина семестра"},{"$f":"тблКлассы[[#Headers],[Последний экзамен]]","v":"Последний экзамен"},{"$f":"тблКлассы[[#Headers],[Другое]]","v":"Другое"},"Всего","Общее возможное количество баллов","Общий %","Баллы","Баллы в буквах"]
[null,null,{"$f":"IF(Параметры!C9=\"\",\"\",Параметры!C9)","v":"Современный французский язык"},{"$f":"IFERROR(INDEX(ТаблБаллыПоПредмету[],MATCH($C6:$C30&D$5:AB$5,Вычисления!$C$33:$C$657,0),4),\"\")","v":{"v":0.8,"d":"80%"}},{"v":0.9,"d":"90%"},{"v":0.8,"d":"80%"},"","","","","","","","","","","","","","","","","","","","","","",{"$f":"IFERROR(AVERAGEIFS(ТаблБаллыПоПредмету[Оценка],ТаблБаллыПоПредмету[Предмет],Вычисления!$C6,ТаблБаллыПоПредмету[Тип],Вычисления!AC$5)*Параметры!E9,\"\")","v":0.08333333333333334},{"$f":"IFERROR(AVERAGEIFS(ТаблБаллыПоПредмету[Оценка],ТаблБаллыПоПредмету[Предмет],Вычисления!$C6,ТаблБаллыПоПредмету[Тип],Вычисления!AD$5)*Параметры!F9,\"\")","v":""},{"$f":"IFERROR(AVERAGEIFS(ТаблБаллыПоПредмету[Оценка],ТаблБаллыПоПредмету[Предмет],Вычисления!$C6,ТаблБаллыПоПредмету[Тип],Вычисления!AE$5)*Параметры!G9,\"\")","v":""},{"$f":"IFERROR(AVERAGEIFS(ТаблБаллыПоПредмету[Оценка],ТаблБаллыПоПредмету[Предмет],Вычисления!$C6,ТаблБаллыПоПредмету[Тип],Вычисления!AF$5)*Параметры!H9,\"\")","v":""},{"$f":"IFERROR(AVERAGEIFS(ТаблБаллыПоПредмету[Оценка],ТаблБаллыПоПредмету[Предмет],Вычисления!$C6,ТаблБаллыПоПредмету[Тип],Вычисления!AG$5)*Параметры!I9,\"\")","v":""},{"$f":"IFERROR(AVERAGEIFS(ТаблБаллыПоПредмету[Оценка],ТаблБаллыПоПредмету[Предмет],Вычисления!$C6,ТаблБаллыПоПредмету[Тип],Вычисления!AH$5)*Параметры!J9,\"\")","v":""},{"$f":"IFERROR(AVERAGEIFS(ТаблБаллыПоПредмету[Оценка],ТаблБаллыПоПредмету[Предмет],Вычисления!$C6,ТаблБаллыПоПредмету[Тип],Вычисления!AI$5)*Параметры!K9,\"\")","v":""},{"$f":"SUM(AC6:AI6)","v":0.08333333333333334},{"$f":"SUMIFS(Параметры!E9:K9,Вычисления!AC6:AI6,\">0\")","v":0.1},{"$f":"IFERROR(AJ6/AK6,\"\")","v":{"v":0.8333333333333334,"d":"83%"}},{"$f":"IFERROR(HLOOKUP(AL6,СписСреднийБалл,3),\"\")","v":3},{"$f":"IFERROR(HLOOKUP(AL6,СписСреднийБалл,2),\"\")","v":"B"}]
[null,null,{"$f":"IF(Параметры!C10=\"\",\"\",Параметры!C10)","v":"Теоретическая физика"},{"v":0.95,"d":"95%"},"","","","","","","","","","","","","","","","","","","","","","","","",{"$f":"IFERROR(AVERAGEIFS(ТаблБаллыПоПредмету[Оценка],ТаблБаллыПоПредмету[Предмет],Вычисления!$C7,ТаблБаллыПоПредмету[Тип],Вычисления!AC$5)*Параметры!E10,\"\")","v":0.1425},{"$f":"IFERROR(AVERAGEIFS(ТаблБаллыПоПредмету[Оценка],ТаблБаллыПоПредмету[Предмет],Вычисления!$C7,ТаблБаллыПоПредмету[Тип],Вычисления!AD$5)*Параметры!F10,\"\")","v":""},{"$f":"IFERROR(AVERAGEIFS(ТаблБаллыПоПредмету[Оценка],ТаблБаллыПоПредмету[Предмет],Вычисления!$C7,ТаблБаллыПоПредмету[Тип],Вычисления!AE$5)*Параметры!G10,\"\")","v":""},{"$f":"IFERROR(AVERAGEIFS(ТаблБаллыПоПредмету[Оценка],ТаблБаллыПоПредмету[Предмет],Вычисления!$C7,ТаблБаллыПоПредмету[Тип],Вычисления!AF$5)*Параметры!H10,\"\")","v":""},{"$f":"IFERROR(AVERAGEIFS(ТаблБаллыПоПредмету[Оценка],ТаблБаллыПоПредмету[Предмет],Вычисления!$C7,ТаблБаллыПоПредмету[Тип],Вычисления!AG$5)*Параметры!I10,\"\")","v":""},{"$f":"IFERROR(AVERAGEIFS(ТаблБаллыПоПредмету[Оценка],ТаблБаллыПоПредмету[Предмет],Вычисления!$C7,ТаблБаллыПоПредмету[Тип],Вычисления!AH$5)*Параметры!J10,\"\")","v":""},{"$f":"IFERROR(AVERAGEIFS(ТаблБаллыПоПредмету[Оценка],ТаблБаллыПоПредмету[Предмет],Вычисления!$C7,ТаблБаллыПоПредмету[Тип],Вычисления!AI$5)*Параметры!K10,\"\")","v":""},{"$f":"SUM(AC7:AI7)","v":0.1425},{"$f":"SUMIFS(Параметры!E10:K10,Вычисления!AC7:AI7,\">0\")","v":0.15},{"$f":"IFERROR(AJ7/AK7,\"\")","v":{"v":0.95,"d":"95%"}},4,"A"]
[null,null,{"$f":"IF(Параметры!C11=\"\",\"\",Параметры!C11)","v":"Математика 1"},{"v":0.8,"d":"80%"},{"v":0.8,"d":"80%"},"","","","","","","","","","","","","","","","","","","","","","","",{"$f":"IFERROR(AVERAGEIFS(ТаблБаллыПоПредмету[Оценка],ТаблБаллыПоПредмету[Предмет],Вычисления!$C8,ТаблБаллыПоПредмету[Тип],Вычисления!AC$5)*Параметры!E11,\"\")","v":0.08000000000000002},{"$f":"IFERROR(AVERAGEIFS(ТаблБаллыПоПредмету[Оценка],ТаблБаллыПоПредмету[Предмет],Вычисления!$C8,ТаблБаллыПоПредмету[Тип],Вычисления!AD$5)*Параметры!F11,\"\")","v":""},{"$f":"IFERROR(AVERAGEIFS(ТаблБаллыПоПредмету[Оценка],ТаблБаллыПоПредмету[Предмет],Вычисления!$C8,ТаблБаллыПоПредмету[Тип],Вычисления!AE$5)*Параметры!G11,\"\")","v":""},{"$f":"IFERROR(AVERAGEIFS(ТаблБаллыПоПредмету[Оценка],ТаблБаллыПоПредмету[Предмет],Вычисления!$C8,ТаблБаллыПоПредмету[Тип],Вычисления!AF$5)*Параметры!H11,\"\")","v":""},{"$f":"IFERROR(AVERAGEIFS(ТаблБаллыПоПредмету[Оценка],ТаблБаллыПоПредмету[Предмет],Вычисления!$C8,ТаблБаллыПоПредмету[Тип],Вычисления!AG$5)*Параметры!I11,\"\")","v":""},{"$f":"IFERROR(AVERAGEIFS(ТаблБаллыПоПредмету[Оценка],ТаблБаллыПоПредмету[Предмет],Вычисления!$C8,ТаблБаллыПоПредмету[Тип],Вычисления!AH$5)*Параметры!J11,\"\")","v":""},{"$f":"IFERROR(AVERAGEIFS(ТаблБаллыПоПредмету[Оценка],ТаблБаллыПоПредмету[Предмет],Вычисления!$C8,ТаблБаллыПоПредмету[Тип],Вычисления!AI$5)*Параметры!K11,\"\")","v":""},0.08000000000000002,{"$f":"SUMIFS(Параметры!E11:K11,Вычисления!AC8:AI8,\">0\")","v":0.1},{"v":0.8000000000000002,"d":"80%"},2.67,"B-"]
[null,null,{"$f":"IF(Параметры!C12=\"\",\"\",Параметры!C12)","v":"Математика 2"},{"v":0.85,"d":"85%"},{"v":0.95,"d":"95%"},"","","","","","","","","","","","","","","","","","","","","","","",{"$f":"IFERROR(AVERAGEIFS(ТаблБаллыПоПредмету[Оценка],ТаблБаллыПоПредмету[Предмет],Вычисления!$C9,ТаблБаллыПоПредмету[Тип],Вычисления!AC$5)*Параметры!E12,\"\")","v":0.1275},{"$f":"IFERROR(AVERAGEIFS(ТаблБаллыПоПредмету[Оценка],ТаблБаллыПоПредмету[Предмет],Вычисления!$C9,ТаблБаллыПоПредмету[Тип],Вычисления!AD$5)*Параметры!F12,\"\")","v":""},{"$f":"IFERROR(AVERAGEIFS(ТаблБаллыПоПредмету[Оценка],ТаблБаллыПоПредмету[Предмет],Вычисления!$C9,ТаблБаллыПоПредмету[Тип],Вычисления!AE$5)*Параметры!G12,\"\")","v":0.095},{"$f":"IFERROR(AVERAGEIFS(ТаблБаллыПоПредмету[Оценка],ТаблБаллыПоПредмету[Предмет],Вычисления!$C9,ТаблБаллыПоПредмету[Тип],Вычисления!AF$5)*Параметры!H12,\"\")","v":""},{"$f":"IFERROR(AVERAGEIFS(ТаблБаллыПоПредмету[Оценка],ТаблБаллыПоПредмету[Предмет],Вычисления!$C9,ТаблБаллыПоПредмету[Тип],Вычисления!AG$5)*Параметры!I12,\"\")","v":""},{"$f":"IFERROR(AVERAGEIFS(ТаблБаллыПоПредмету[Оценка],ТаблБаллыПоПредмету[Предмет],Вычисления!$C9,ТаблБаллыПоПредмету[Тип],Вычисления!AH$5)*Параметры!J12,\"\")","v":""},{"$f":"IFERROR(AVERAGEIFS(ТаблБаллыПоПредмету[Оценка],ТаблБаллыПоПредмету[Предмет],Вычисления!$C9,ТаблБаллыПоПредмету[Тип],Вычисления!AI$5)*Параметры!K12,\"\")","v":""},0.2225,{"$f":"SUMIFS(Параметры!E12:K12,Вычисления!AC9:AI9,\">0\")","v":0.25},{"v":0.89,"d":"89%"},3.33,"B+"]
[null,null,{"$f":"IF(Параметры!C13=\"\",\"\",Параметры!C13)","v":"Продвинутое программирование на Java"},{"v":0.75,"d":"75%"},"","","","","","","","","","","","","","","","","","","","","","","","",{"$f":"IFERROR(AVERAGEIFS(ТаблБаллыПоПредмету[Оценка],ТаблБаллыПоПредмету[Предмет],Вычисления!$C10,ТаблБаллыПоПредмету[Тип],Вычисления!AC$5)*Параметры!E13,\"\")","v":""},{"$f":"IFERROR(AVERAGEIFS(ТаблБаллыПоПредмету[Оценка],ТаблБаллыПоПредмету[Предмет],Вычисления!$C10,ТаблБаллыПоПредмету[Тип],Вычисления!AD$5)*Параметры!F13,\"\")","v":""},{"$f":"IFERROR(AVERAGEIFS(ТаблБаллыПоПредмету[Оценка],ТаблБаллыПоПредмету[Предмет],Вычисления!$C10,ТаблБаллыПоПредмету[Тип],Вычисления!AE$5)*Параметры!G13,\"\")","v":""},{"$f":"IFERROR(AVERAGEIFS(ТаблБаллыПоПредмету[Оценка],ТаблБаллыПоПредмету[Предмет],Вычисления!$C10,ТаблБаллыПоПредмету[Тип],Вычисления!AF$5)*Параметры!H13,\"\")","v":""},{"$f":"IFERROR(AVERAGEIFS(ТаблБаллыПоПредмету[Оценка],ТаблБаллыПоПредмету[Предмет],Вычисления!$C10,ТаблБаллыПоПредмету[Тип],Вычисления!AG$5)*Параметры!I13,\"\")","v":0.15000000000000002},{"$f":"IFERROR(AVERAGEIFS(ТаблБаллыПоПредмету[Оценка],ТаблБаллыПоПредмету[Предмет],Вычисления!$C10,ТаблБаллыПоПредмету[Тип],Вычисления!AH$5)*Параметры!J13,\"\")","v":""},{"$f":"IFERROR(AVERAGEIFS(ТаблБаллыПоПредмету[Оценка],ТаблБаллыПоПредмету[Предмет],Вычисления!$C10,ТаблБаллыПоПредмету[Тип],Вычисления!AI$5)*Параметры!K13,\"\")","v":""},0.15000000000000002,{"$f":"SUMIFS(Параметры!E13:K13,Вычисления!AC10:AI10,\">0\")","v":0.2},{"v":0.7500000000000001,"d":"75%"},2,"C"]
[null,null,{"$f":"IF(Параметры!C14=\"\",\"\",Параметры!C14)","v":"Испанский"},{"v":0.5,"d":"50%"},"","","","","","","","","","","","","","","","","","","","","","","","",{"$f":"IFERROR(AVERAGEIFS(ТаблБаллыПоПредмету[Оценка],ТаблБаллыПоПредмету[Предмет],Вычисления!$C11,ТаблБаллыПоПредмету[Тип],Вычисления!AC$5)*Параметры!E14,\"\")","v":0.05},{"$f":"IFERROR(AVERAGEIFS(ТаблБаллыПоПредмету[Оценка],ТаблБаллыПоПредмету[Предмет],Вычисления!$C11,ТаблБаллыПоПредмету[Тип],Вычисления!AD$5)*Параметры!F14,\"\")","v":""},{"$f":"IFERROR(AVERAGEIFS(ТаблБаллыПоПредмету[Оценка],ТаблБаллыПоПредмету[Предмет],Вычисления!$C11,ТаблБаллыПоПредмету[Тип],Вычисления!AE$5)*Параметры!G14,\"\")","v":""},{"$f":"IFERROR(AVERAGEIFS(ТаблБаллыПоПредмету[Оценка],ТаблБаллыПоПредмету[Предмет],Вычисления!$C11,ТаблБаллыПоПредмету[Тип],Вычисления!AF$5)*Параметры!H14,\"\")","v":""},{"$f":"IFERROR(AVERAGEIFS(ТаблБаллыПоПредмету[Оценка],ТаблБаллыПоПредмету[Предмет],Вычисления!$C11,ТаблБаллыПоПредмету[Тип],Вычисления!AG$5)*Параметры!I14,\"\")","v":""},{"$f":"IFERROR(AVERAGEIFS(ТаблБаллыПоПредмету[Оценка],ТаблБаллыПоПредмету[Предмет],Вычисления!$C11,ТаблБаллыПоПредмету[Тип],Вычисления!AH$5)*Параметры!J14,\"\")","v":""},{"$f":"IFERROR(AVERAGEIFS(ТаблБаллыПоПредмету[Оценка],ТаблБаллыПоПредмету[Предмет],Вычисления!$C11,ТаблБаллыПоПредмету[Тип],Вычисления!AI$5)*Параметры!K14,\"\")","v":""},0.05,{"$f":"SUMIFS(Параметры!E14:K14,Вычисления!AC11:AI11,\">0\")","v":0.1},{"v":0.5,"d":"50%"},0,"F"]
[null,null,{"$f":"IF(Параметры!C15=\"\",\"\",Параметры!C15)","v":"Сочинение"},{"v":0.95,"d":"95%"},"","","","","","","","","","","","","","","","","","","","","","","","",{"$f":"IFERROR(AVERAGEIFS(ТаблБаллыПоПредмету[Оценка],ТаблБаллыПоПредмету[Предмет],Вычисления!$C12,ТаблБаллыПоПредмету[Тип],Вычисления!AC$5)*Параметры!E15,\"\")","v":""},{"$f":"IFERROR(AVERAGEIFS(ТаблБаллыПоПредмету[Оценка],ТаблБаллыПоПредмету[Предмет],Вычисления!$C12,ТаблБаллыПоПредмету[Тип],Вычисления!AD$5)*Параметры!F15,\"\")","v":0.1425},{"$f":"IFERROR(AVERAGEIFS(ТаблБаллыПоПредмету[Оценка],ТаблБаллыПоПредмету[Предмет],Вычисления!$C12,ТаблБаллыПоПредмету[Тип],Вычисления!AE$5)*Параметры!G15,\"\")","v":""},{"$f":"IFERROR(AVERAGEIFS(ТаблБаллыПоПредмету[Оценка],ТаблБаллыПоПредмету[Предмет],Вычисления!$C12,ТаблБаллыПоПредмету[Тип],Вычисления!AF$5)*Параметры!H15,\"\")","v":""},{"$f":"IFERROR(AVERAGEIFS(ТаблБаллыПоПредмету[Оценка],ТаблБаллыПоПредмету[Предмет],Вычисления!$C12,ТаблБаллыПоПредмету[Тип],Вычисления!AG$5)*Параметры!I15,\"\")","v":""},{"$f":"IFERROR(AVERAGEIFS(ТаблБаллыПоПредмету[Оценка],ТаблБаллыПоПредмету[Предмет],Вычисления!$C12,ТаблБаллыПоПредмету[Тип],Вычисления!AH$5)*Параметры!J15,\"\")","v":""},{"$f":"IFERROR(AVERAGEIFS(ТаблБаллыПоПредмету[Оценка],ТаблБаллыПоПредмету[Предмет],Вычисления!$C12,ТаблБаллыПоПредмету[Тип],Вычисления!AI$5)*Параметры!K15,\"\")","v":""},0.1425,{"$f":"SUMIFS(Параметры!E15:K15,Вычисления!AC12:AI12,\">0\")","v":0.15},{"v":0.95,"d":"95%"},4,"A"]
[null,null,{"$f":"IF(Параметры!C16=\"\",\"\",Параметры!C16)","v":""},"","","","","","","","","","","","","","","","","","","","","","","","","",{"$f":"IFERROR(AVERAGEIFS(ТаблБаллыПоПредмету[Оценка],ТаблБаллыПоПредмету[Предмет],Вычисления!$C13,ТаблБаллыПоПредмету[Тип],Вычисления!AC$5)*Параметры!E16,\"\")","v":""},{"$f":"IFERROR(AVERAGEIFS(ТаблБаллыПоПредмету[Оценка],ТаблБаллыПоПредмету[Предмет],Вычисления!$C13,ТаблБаллыПоПредмету[Тип],Вычисления!AD$5)*Параметры!F16,\"\")","v":""},{"$f":"IFERROR(AVERAGEIFS(ТаблБаллыПоПредмету[Оценка],ТаблБаллыПоПредмету[Предмет],Вычисления!$C13,ТаблБаллыПоПредмету[Тип],Вычисления!AE$5)*Параметры!G16,\"\")","v":""},{"$f":"IFERROR(AVERAGEIFS(ТаблБаллыПоПредмету[Оценка],ТаблБаллыПоПредмету[Предмет],Вычисления!$C13,ТаблБаллыПоПредмету[Тип],Вычисления!AF$5)*Параметры!H16,\"\")","v":""},{"$f":"IFERROR(AVERAGEIFS(ТаблБаллыПоПредмету[Оценка],ТаблБаллыПоПредмету[Предмет],Вычисления!$C13,ТаблБаллыПоПредмету[Тип],Вычисления!AG$5)*Параметры!I16,\"\")","v":""},{"$f":"IFERROR(AVERAGEIFS(ТаблБаллыПоПредмету[Оценка],ТаблБаллыПоПредмету[Предмет],Вычисления!$C13,ТаблБаллыПоПредмету[Тип],Вычисления!AH$5)*Параметры!J16,\"\")","v":""},{"$f":"IFERROR(AVERAGEIFS(ТаблБаллыПоПредмету[Оценка],ТаблБаллыПоПредмету[Предмет],Вычисления!$C13,ТаблБаллыПоПредмету[Тип],Вычисления!AI$5)*Параметры!K16,\"\")","v":""},{"$f":"SUM(AC13:AI13)","v":0},{"$f":"SUMIFS(Параметры!E16:K16,Вычисления!AC13:AI13,\">0\")","v":0},{"$f":"IFERROR(AJ13/AK13,\"\")","v":""},"",""]
[null,null,{"$f":"IF(Параметры!C17=\"\",\"\",Параметры!C17)","v":""},"","","","","","","","","","","","","","","","","","","","","","","","","",{"$f":"IFERROR(AVERAGEIFS(ТаблБаллыПоПредмету[Оценка],ТаблБаллыПоПредмету[Предмет],Вычисления!$C14,ТаблБаллыПоПредмету[Тип],Вычисления!AC$5)*Параметры!E17,\"\")","v":""},{"$f":"IFERROR(AVERAGEIFS(ТаблБаллыПоПредмету[Оценка],ТаблБаллыПоПредмету[Предмет],Вычисления!$C14,ТаблБаллыПоПредмету[Тип],Вычисления!AD$5)*Параметры!F17,\"\")","v":""},{"$f":"IFERROR(AVERAGEIFS(ТаблБаллыПоПредмету[Оценка],ТаблБаллыПоПредмету[Предмет],Вычисления!$C14,ТаблБаллыПоПредмету[Тип],Вычисления!AE$5)*Параметры!G17,\"\")","v":""},{"$f":"IFERROR(AVERAGEIFS(ТаблБаллыПоПредмету[Оценка],ТаблБаллыПоПредмету[Предмет],Вычисления!$C14,ТаблБаллыПоПредмету[Тип],Вычисления!AF$5)*Параметры!H17,\"\")","v":""},{"$f":"IFERROR(AVERAGEIFS(ТаблБаллыПоПредмету[Оценка],ТаблБаллыПоПредмету[Предмет],Вычисления!$C14,ТаблБаллыПоПредмету[Тип],Вычисления!AG$5)*Параметры!I17,\"\")","v":""},{"$f":"IFERROR(AVERAGEIFS(ТаблБаллыПоПредмету[Оценка],ТаблБаллыПоПредмету[Предмет],Вычисления!$C14,ТаблБаллыПоПредмету[Тип],Вычисления!AH$5)*Параметры!J17,\"\")","v":""},{"$f":"IFERROR(AVERAGEIFS(ТаблБаллыПоПредмету[Оценка],ТаблБаллыПоПредмету[Предмет],Вычисления!$C14,ТаблБаллыПоПредмету[Тип],Вычисления!AI$5)*Параметры!K17,\"\")","v":""},0,{"$f":"SUMIFS(Параметры!E17:K17,Вычисления!AC14:AI14,\">0\")","v":0},"","",""]
[null,null,{"$f":"IF(Параметры!C18=\"\",\"\",Параметры!C18)","v":""},"","","","","","","","","","","","","","","","","","","","","","","","","",{"$f":"IFERROR(AVERAGEIFS(ТаблБаллыПоПредмету[Оценка],ТаблБаллыПоПредмету[Предмет],Вычисления!$C15,ТаблБаллыПоПредмету[Тип],Вычисления!AC$5)*Параметры!E18,\"\")","v":""},{"$f":"IFERROR(AVERAGEIFS(ТаблБаллыПоПредмету[Оценка],ТаблБаллыПоПредмету[Предмет],Вычисления!$C15,ТаблБаллыПоПредмету[Тип],Вычисления!AD$5)*Параметры!F18,\"\")","v":""},{"$f":"IFERROR(AVERAGEIFS(ТаблБаллыПоПредмету[Оценка],ТаблБаллыПоПредмету[Предмет],Вычисления!$C15,ТаблБаллыПоПредмету[Тип],Вычисления!AE$5)*Параметры!G18,\"\")","v":""},{"$f":"IFERROR(AVERAGEIFS(ТаблБаллыПоПредмету[Оценка],ТаблБаллыПоПредмету[Предмет],Вычисления!$C15,ТаблБаллыПоПредмету[Тип],Вычисления!AF$5)*Параметры!H18,\"\")","v":""},{"$f":"IFERROR(AVERAGEIFS(ТаблБаллыПоПредмету[Оценка],ТаблБаллыПоПредмету[Предмет],Вычисления!$C15,ТаблБаллыПоПредмету[Тип],Вычисления!AG$5)*Параметры!I18,\"\")","v":""},{"$f":"IFERROR(AVERAGEIFS(ТаблБаллыПоПредмету[Оценка],ТаблБаллыПоПредмету[Предмет],Вычисления!$C15,ТаблБаллыПоПредмету[Тип],Вычисления!AH$5)*Параметры!J18,\"\")","v":""},{"$f":"IFERROR(AVERAGEIFS(ТаблБаллыПоПредмету[Оценка],ТаблБаллыПоПредмету[Предмет],Вычисления!$C15,ТаблБаллыПоПредмету[Тип],Вычисления!AI$5)*Параметры!K18,\"\")","v":""},0,{"$f":"SUMIFS(Параметры!E18:K18,Вычисления!AC15:AI15,\">0\")","v":0},"","",""]
[null,null,{"$f":"IF(Параметры!C19=\"\",\"\",Параметры!C19)","v":""},"","","","","","","","","","","","","","","","","","","","","","","","","",{"$f":"IFERROR(AVERAGEIFS(ТаблБаллыПоПредмету[Оценка],ТаблБаллыПоПредмету[Предмет],Вычисления!$C16,ТаблБаллыПоПредмету[Тип],Вычисления!AC$5)*Параметры!E19,\"\")","v":""},{"$f":"IFERROR(AVERAGEIFS(ТаблБаллыПоПредмету[Оценка],ТаблБаллыПоПредмету[Предмет],Вычисления!$C16,ТаблБаллыПоПредмету[Тип],Вычисления!AD$5)*Параметры!F19,\"\")","v":""},{"$f":"IFERROR(AVERAGEIFS(ТаблБаллыПоПредмету[Оценка],ТаблБаллыПоПредмету[Предмет],Вычисления!$C16,ТаблБаллыПоПредмету[Тип],Вычисления!AE$5)*Параметры!G19,\"\")","v":""},{"$f":"IFERROR(AVERAGEIFS(ТаблБаллыПоПредмету[Оценка],ТаблБаллыПоПредмету[Предмет],Вычисления!$C16,ТаблБаллыПоПредмету[Тип],Вычисления!AF$5)*Параметры!H19,\"\")","v":""},{"$f":"IFERROR(AVERAGEIFS(ТаблБаллыПоПредмету[Оценка],ТаблБаллыПоПредмету[Предмет],Вычисления!$C16,ТаблБаллыПоПредмету[Тип],Вычисления!AG$5)*Параметры!I19,\"\")","v":""},{"$f":"IFERROR(AVERAGEIFS(ТаблБаллыПоПредмету[Оценка],ТаблБаллыПоПредмету[Предмет],Вычисления!$C16,ТаблБаллыПоПредмету[Тип],Вычисления!AH$5)*Параметры!J19,\"\")","v":""},{"$f":"IFERROR(AVERAGEIFS(ТаблБаллыПоПредмету[Оценка],ТаблБаллыПоПредмету[Предмет],Вычисления!$C16,ТаблБаллыПоПредмету[Тип],Вычисления!AI$5)*Параметры!K19,\"\")","v":""},0,{"$f":"SUMIFS(Параметры!E19:K19,Вычисления!AC16:AI16,\">0\")","v":0},"","",""]
[null,null,{"$f":"IF(Параметры!C20=\"\",\"\",Параметры!C20)","v":""},"","","","","","","","","","","","","","","","","","","","","","","","","",{"$f":"IFERROR(AVERAGEIFS(ТаблБаллыПоПредмету[Оценка],ТаблБаллыПоПредмету[Предмет],Вычисления!$C17,ТаблБаллыПоПредмету[Тип],Вычисления!AC$5)*Параметры!E20,\"\")","v":""},{"$f":"IFERROR(AVERAGEIFS(ТаблБаллыПоПредмету[Оценка],ТаблБаллыПоПредмету[Предмет],Вычисления!$C17,ТаблБаллыПоПредмету[Тип],Вычисления!AD$5)*Параметры!F20,\"\")","v":""},{"$f":"IFERROR(AVERAGEIFS(ТаблБаллыПоПредмету[Оценка],ТаблБаллыПоПредмету[Предмет],Вычисления!$C17,ТаблБаллыПоПредмету[Тип],Вычисления!AE$5)*Параметры!G20,\"\")","v":""},{"$f":"IFERROR(AVERAGEIFS(ТаблБаллыПоПредмету[Оценка],ТаблБаллыПоПредмету[Предмет],Вычисления!$C17,ТаблБаллыПоПредмету[Тип],Вычисления!AF$5)*Параметры!H20,\"\")","v":""},{"$f":"IFERROR(AVERAGEIFS(ТаблБаллыПоПредмету[Оценка],ТаблБаллыПоПредмету[Предмет],Вычисления!$C17,ТаблБаллыПоПредмету[Тип],Вычисления!AG$5)*Параметры!I20,\"\")","v":""},{"$f":"IFERROR(AVERAGEIFS(ТаблБаллыПоПредмету[Оценка],ТаблБаллыПоПредмету[Предмет],Вычисления!$C17,ТаблБаллыПоПредмету[Тип],Вычисления!AH$5)*Параметры!J20,\"\")","v":""},{"$f":"IFERROR(AVERAGEIFS(ТаблБаллыПоПредмету[Оценка],ТаблБаллыПоПредмету[Предмет],Вычисления!$C17,ТаблБаллыПоПредмету[Тип],Вычисления!AI$5)*Параметры!K20,\"\")","v":""},0,{"$f":"SUMIFS(Параметры!E20:K20,Вычисления!AC17:AI17,\">0\")","v":0},"","",""]
[null,null,{"$f":"IF(Параметры!C21=\"\",\"\",Параметры!C21)","v":""},"","","","","","","","","","","","","","","","","","","","","","","","","",{"$f":"IFERROR(AVERAGEIFS(ТаблБаллыПоПредмету[Оценка],ТаблБаллыПоПредмету[Предмет],Вычисления!$C18,ТаблБаллыПоПредмету[Тип],Вычисления!AC$5)*Параметры!E21,\"\")","v":""},{"$f":"IFERROR(AVERAGEIFS(ТаблБаллыПоПредмету[Оценка],ТаблБаллыПоПредмету[Предмет],Вычисления!$C18,ТаблБаллыПоПредмету[Тип],Вычисления!AD$5)*Параметры!F21,\"\")","v":""},{"$f":"IFERROR(AVERAGEIFS(ТаблБаллыПоПредмету[Оценка],ТаблБаллыПоПредмету[Предмет],Вычисления!$C18,ТаблБаллыПоПредмету[Тип],Вычисления!AE$5)*Параметры!G21,\"\")","v":""},{"$f":"IFERROR(AVERAGEIFS(ТаблБаллыПоПредмету[Оценка],ТаблБаллыПоПредмету[Предмет],Вычисления!$C18,ТаблБаллыПоПредмету[Тип],Вычисления!AF$5)*Параметры!H21,\"\")","v":""},{"$f":"IFERROR(AVERAGEIFS(ТаблБаллыПоПредмету[Оценка],ТаблБаллыПоПредмету[Предмет],Вычисления!$C18,ТаблБаллыПоПредмету[Тип],Вычисления!AG$5)*Параметры!I21,\"\")","v":""},{"$f":"IFERROR(AVERAGEIFS(ТаблБаллыПоПредмету[Оценка],ТаблБаллыПоПредмету[Предмет],Вычисления!$C18,ТаблБаллыПоПредмету[Тип],Вычисления!AH$5)*Параметры!J21,\"\")","v":""},{"$f":"IFERROR(AVERAGEIFS(ТаблБаллыПоПредмету[Оценка],ТаблБаллыПоПредмету[Предмет],Вычисления!$C18,ТаблБаллыПоПредмету[Тип],Вычисления!AI$5)*Параметры!K21,\"\")","v":""},0,{"$f":"SUMIFS(Параметры!E21:K21,Вычисления!AC18:AI18,\">0\")","v":0},"","",""]
[null,null,{"$f":"IF(Параметры!C22=\"\",\"\",Параметры!C22)","v":""},"","","","","","","","","","","","","","","","","","","","","","","","","",{"$f":"IFERROR(AVERAGEIFS(ТаблБаллыПоПредмету[Оценка],ТаблБаллыПоПредмету[Предмет],Вычисления!$C19,ТаблБаллыПоПредмету[Тип],Вычисления!AC$5)*Параметры!E22,\"\")","v":""},{"$f":"IFERROR(AVERAGEIFS(ТаблБаллыПоПредмету[Оценка],ТаблБаллыПоПредмету[Предмет],Вычисления!$C19,ТаблБаллыПоПредмету[Тип],Вычисления!AD$5)*Параметры!F22,\"\")","v":""},{"$f":"IFERROR(AVERAGEIFS(ТаблБаллыПоПредмету[Оценка],ТаблБаллыПоПредмету[Предмет],Вычисления!$C19,ТаблБаллыПоПредмету[Тип],Вычисления!AE$5)*Параметры!G22,\"\")","v":""},{"$f":"IFERROR(AVERAGEIFS(ТаблБаллыПоПредмету[Оценка],ТаблБаллыПоПредмету[Предмет],Вычисления!$C19,ТаблБаллыПоПредмету[Тип],Вычисления!AF$5)*Параметры!H22,\"\")","v":""},{"$f":"IFERROR(AVERAGEIFS(ТаблБаллыПоПредмету[Оценка],ТаблБаллыПоПредмету[Предмет],Вычисления!$C19,ТаблБаллыПоПредмету[Тип],Вычисления!AG$5)*Параметры!I22,\"\")","v":""},{"$f":"IFERROR(AVERAGEIFS(ТаблБаллыПоПредмету[Оценка],ТаблБаллыПоПредмету[Предмет],Вычисления!$C19,ТаблБаллыПоПредмету[Тип],Вычисления!AH$5)*Параметры!J22,\"\")","v":""},{"$f":"IFERROR(AVERAGEIFS(ТаблБаллыПоПредмету[Оценка],ТаблБаллыПоПредмету[Предмет],Вычисления!$C19,ТаблБаллыПоПредмету[Тип],Вычисления!AI$5)*Параметры!K22,\"\")","v":""},0,{"$f":"SUMIFS(Параметры!E22:K22,Вычисления!AC19:AI19,\">0\")","v":0},"","",""]
[null,null,{"$f":"IF(Параметры!C23=\"\",\"\",Параметры!C23)","v":""},"","","","","","","","","","","","","","","","","","","","","","","","","",{"$f":"IFERROR(AVERAGEIFS(ТаблБаллыПоПредмету[Оценка],ТаблБаллыПоПредмету[Предмет],Вычисления!$C20,ТаблБаллыПоПредмету[Тип],Вычисления!AC$5)*Параметры!E23,\"\")","v":""},{"$f":"IFERROR(AVERAGEIFS(ТаблБаллыПоПредмету[Оценка],ТаблБаллыПоПредмету[Предмет],Вычисления!$C20,ТаблБаллыПоПредмету[Тип],Вычисления!AD$5)*Параметры!F23,\"\")","v":""},{"$f":"IFERROR(AVERAGEIFS(ТаблБаллыПоПредмету[Оценка],ТаблБаллыПоПредмету[Предмет],Вычисления!$C20,ТаблБаллыПоПредмету[Тип],Вычисления!AE$5)*Параметры!G23,\"\")","v":""},{"$f":"IFERROR(AVERAGEIFS(ТаблБаллыПоПредмету[Оценка],ТаблБаллыПоПредмету[Предмет],Вычисления!$C20,ТаблБаллыПоПредмету[Тип],Вычисления!AF$5)*Параметры!H23,\"\")","v":""},{"$f":"IFERROR(AVERAGEIFS(ТаблБаллыПоПредмету[Оценка],ТаблБаллыПоПредмету[Предмет],Вычисления!$C20,ТаблБаллыПоПредмету[Тип],Вычисления!AG$5)*Параметры!I23,\"\")","v":""},{"$f":"IFERROR(AVERAGEIFS(ТаблБаллыПоПредмету[Оценка],ТаблБаллыПоПредмету[Предмет],Вычисления!$C20,ТаблБаллыПоПредмету[Тип],Вычисления!AH$5)*Параметры!J23,\"\")","v":""},{"$f":"IFERROR(AVERAGEIFS(ТаблБаллыПоПредмету[Оценка],ТаблБаллыПоПредмету[Предмет],Вычисления!$C20,ТаблБаллыПоПредмету[Тип],Вычисления!AI$5)*Параметры!K23,\"\")","v":""},0,{"$f":"SUMIFS(Параметры!E23:K23,Вычисления!AC20:AI20,\">0\")","v":0},"","",""]
[null,null,{"$f":"IF(Параметры!C24=\"\",\"\",Параметры!C24)","v":""},"","","","","","","","","","","","","","","","","","","","","","","","","",{"$f":"IFERROR(AVERAGEIFS(ТаблБаллыПоПредмету[Оценка],ТаблБаллыПоПредмету[Предмет],Вычисления!$C21,ТаблБаллыПоПредмету[Тип],Вычисления!AC$5)*Параметры!E24,\"\")","v":""},{"$f":"IFERROR(AVERAGEIFS(ТаблБаллыПоПредмету[Оценка],ТаблБаллыПоПредмету[Предмет],Вычисления!$C21,ТаблБаллыПоПредмету[Тип],Вычисления!AD$5)*Параметры!F24,\"\")","v":""},{"$f":"IFERROR(AVERAGEIFS(ТаблБаллыПоПредмету[Оценка],ТаблБаллыПоПредмету[Предмет],Вычисления!$C21,ТаблБаллыПоПредмету[Тип],Вычисления!AE$5)*Параметры!G24,\"\")","v":""},{"$f":"IFERROR(AVERAGEIFS(ТаблБаллыПоПредмету[Оценка],ТаблБаллыПоПредмету[Предмет],Вычисления!$C21,ТаблБаллыПоПредмету[Тип],Вычисления!AF$5)*Параметры!H24,\"\")","v":""},{"$f":"IFERROR(AVERAGEIFS(ТаблБаллыПоПредмету[Оценка],ТаблБаллыПоПредмету[Предмет],Вычисления!$C21,ТаблБаллыПоПредмету[Тип],Вычисления!AG$5)*Параметры!I24,\"\")","v":""},{"$f":"IFERROR(AVERAGEIFS(ТаблБаллыПоПредмету[Оценка],ТаблБаллыПоПредмету[Предмет],Вычисления!$C21,ТаблБаллыПоПредмету[Тип],Вычисления!AH$5)*Параметры!J24,\"\")","v":""},{"$f":"IFERROR(AVERAGEIFS(ТаблБаллыПоПредмету[Оценка],ТаблБаллыПоПредмету[Предмет],Вычисления!$C21,ТаблБаллыПоПредмету[Тип],Вычисления!AI$5)*Параметры!K24,\"\")","v":""},0,{"$f":"SUMIFS(Параметры!E24:K24,Вычисления!AC21:AI21,\">0\")","v":0},"","",""]
[null,null,{"$f":"IF(Параметры!C25=\"\",\"\",Параметры!C25)","v":""},"","","","","","","","","","","","","","","","","","","","","","","","","",{"$f":"IFERROR(AVERAGEIFS(ТаблБаллыПоПредмету[Оценка],ТаблБаллыПоПредмету[Предмет],Вычисления!$C22,ТаблБаллыПоПредмету[Тип],Вычисления!AC$5)*Параметры!E25,\"\")","v":""},{"$f":"IFERROR(AVERAGEIFS(ТаблБаллыПоПредмету[Оценка],ТаблБаллыПоПредмету[Предмет],Вычисления!$C22,ТаблБаллыПоПредмету[Тип],Вычисления!AD$5)*Параметры!F25,\"\")","v":""},{"$f":"IFERROR(AVERAGEIFS(ТаблБаллыПоПредмету[Оценка],ТаблБаллыПоПредмету[Предмет],Вычисления!$C22,ТаблБаллыПоПредмету[Тип],Вычисления!AE$5)*Параметры!G25,\"\")","v":""},{"$f":"IFERROR(AVERAGEIFS(ТаблБаллыПоПредмету[Оценка],ТаблБаллыПоПредмету[Предмет],Вычисления!$C22,ТаблБаллыПоПредмету[Тип],Вычисления!AF$5)*Параметры!H25,\"\")","v":""},{"$f":"IFERROR(AVERAGEIFS(ТаблБаллыПоПредмету[Оценка],ТаблБаллыПоПредмету[Предмет],Вычисления!$C22,ТаблБаллыПоПредмету[Тип],Вычисления!AG$5)*Параметры!I25,\"\")","v":""},{"$f":"IFERROR(AVERAGEIFS(ТаблБаллыПоПредмету[Оценка],ТаблБаллыПоПредмету[Предмет],Вычисления!$C22,ТаблБаллыПоПредмету[Тип],Вычисления!AH$5)*Параметры!J25,\"\")","v":""},{"$f":"IFERROR(AVERAGEIFS(ТаблБаллыПоПредмету[Оценка],ТаблБаллыПоПредмету[Предмет],Вычисления!$C22,ТаблБаллыПоПредмету[Тип],Вычисления!AI$5)*Параметры!K25,\"\")","v":""},0,{"$f":"SUMIFS(Параметры!E25:K25,Вычисления!AC22:AI22,\">0\")","v":0},"","",""]
[null,null,{"$f":"IF(Параметры!C26=\"\",\"\",Параметры!C26)","v":""},"","","","","","","","","","","","","","","","","","","","","","","","","",{"$f":"IFERROR(AVERAGEIFS(ТаблБаллыПоПредмету[Оценка],ТаблБаллыПоПредмету[Предмет],Вычисления!$C23,ТаблБаллыПоПредмету[Тип],Вычисления!AC$5)*Параметры!E26,\"\")","v":""},{"$f":"IFERROR(AVERAGEIFS(ТаблБаллыПоПредмету[Оценка],ТаблБаллыПоПредмету[Предмет],Вычисления!$C23,ТаблБаллыПоПредмету[Тип],Вычисления!AD$5)*Параметры!F26,\"\")","v":""},{"$f":"IFERROR(AVERAGEIFS(ТаблБаллыПоПредмету[Оценка],ТаблБаллыПоПредмету[Предмет],Вычисления!$C23,ТаблБаллыПоПредмету[Тип],Вычисления!AE$5)*Параметры!G26,\"\")","v":""},{"$f":"IFERROR(AVERAGEIFS(ТаблБаллыПоПредмету[Оценка],ТаблБаллыПоПредмету[Предмет],Вычисления!$C23,ТаблБаллыПоПредмету[Тип],Вычисления!AF$5)*Параметры!H26,\"\")","v":""},{"$f":"IFERROR(AVERAGEIFS(ТаблБаллыПоПредмету[Оценка],ТаблБаллыПоПредмету[Предмет],Вычисления!$C23,ТаблБаллыПоПредмету[Тип],Вычисления!AG$5)*Параметры!I26,\"\")","v":""},{"$f":"IFERROR(AVERAGEIFS(ТаблБаллыПоПредмету[Оценка],ТаблБаллыПоПредмету[Предмет],Вычисления!$C23,ТаблБаллыПоПредмету[Тип],Вычисления!AH$5)*Параметры!J26,\"\")","v":""},{"$f":"IFERROR(AVERAGEIFS(ТаблБаллыПоПредмету[Оценка],ТаблБаллыПоПредмету[Предмет],Вычисления!$C23,ТаблБаллыПоПредмету[Тип],Вычисления!AI$5)*Параметры!K26,\"\")","v":""},0,{"$f":"SUMIFS(Параметры!E26:K26,Вычисления!AC23:AI23,\">0\")","v":0},"","",""]
[null,null,{"$f":"IF(Параметры!C27=\"\",\"\",Параметры!C27)","v":""},"","","","","","","","","","","","","","","","","","","","","","","","","",{"$f":"IFERROR(AVERAGEIFS(ТаблБаллыПоПредмету[Оценка],ТаблБаллыПоПредмету[Предмет],Вычисления!$C24,ТаблБаллыПоПредмету[Тип],Вычисления!AC$5)*Параметры!E27,\"\")","v":""},{"$f":"IFERROR(AVERAGEIFS(ТаблБаллыПоПредмету[Оценка],ТаблБаллыПоПредмету[Предмет],Вычисления!$C24,ТаблБаллыПоПредмету[Тип],Вычисления!AD$5)*Параметры!F27,\"\")","v":""},{"$f":"IFERROR(AVERAGEIFS(ТаблБаллыПоПредмету[Оценка],ТаблБаллыПоПредмету[Предмет],Вычисления!$C24,ТаблБаллыПоПредмету[Тип],Вычисления!AE$5)*Параметры!G27,\"\")","v":""},{"$f":"IFERROR(AVERAGEIFS(ТаблБаллыПоПредмету[Оценка],ТаблБаллыПоПредмету[Предмет],Вычисления!$C24,ТаблБаллыПоПредмету[Тип],Вычисления!AF$5)*Параметры!H27,\"\")","v":""},{"$f":"IFERROR(AVERAGEIFS(ТаблБаллыПоПредмету[Оценка],ТаблБаллыПоПредмету[Предмет],Вычисления!$C24,ТаблБаллыПоПредмету[Тип],Вычисления!AG$5)*Параметры!I27,\"\")","v":""},{"$f":"IFERROR(AVERAGEIFS(ТаблБаллыПоПредмету[Оценка],ТаблБаллыПоПредмету[Предмет],Вычисления!$C24,ТаблБаллыПоПредмету[Тип],Вычисления!AH$5)*Параметры!J27,\"\")","v":""},{"$f":"IFERROR(AVERAGEIFS(ТаблБаллыПоПредмету[Оценка],ТаблБаллыПоПредмету[Предмет],Вычисления!$C24,ТаблБаллыПоПредмету[Тип],Вычисления!AI$5)*Параметры!K27,\"\")","v":""},0,{"$f":"SUMIFS(Параметры!E27:K27,Вычисления!AC24:AI24,\">0\")","v":0},"","",""]
[null,null,{"$f":"IF(Параметры!C28=\"\",\"\",Параметры!C28)","v":""},"","","","","","","","","","","","","","","","","","","","","","","","","",{"$f":"IFERROR(AVERAGEIFS(ТаблБаллыПоПредмету[Оценка],ТаблБаллыПоПредмету[Предмет],Вычисления!$C25,ТаблБаллыПоПредмету[Тип],Вычисления!AC$5)*Параметры!E28,\"\")","v":""},{"$f":"IFERROR(AVERAGEIFS(ТаблБаллыПоПредмету[Оценка],ТаблБаллыПоПредмету[Предмет],Вычисления!$C25,ТаблБаллыПоПредмету[Тип],Вычисления!AD$5)*Параметры!F28,\"\")","v":""},{"$f":"IFERROR(AVERAGEIFS(ТаблБаллыПоПредмету[Оценка],ТаблБаллыПоПредмету[Предмет],Вычисления!$C25,ТаблБаллыПоПредмету[Тип],Вычисления!AE$5)*Параметры!G28,\"\")","v":""},{"$f":"IFERROR(AVERAGEIFS(ТаблБаллыПоПредмету[Оценка],ТаблБаллыПоПредмету[Предмет],Вычисления!$C25,ТаблБаллыПоПредмету[Тип],Вычисления!AF$5)*Параметры!H28,\"\")","v":""},{"$f":"IFERROR(AVERAGEIFS(ТаблБаллыПоПредмету[Оценка],ТаблБаллыПоПредмету[Предмет],Вычисления!$C25,ТаблБаллыПоПредмету[Тип],Вычисления!AG$5)*Параметры!I28,\"\")","v":""},{"$f":"IFERROR(AVERAGEIFS(ТаблБаллыПоПредмету[Оценка],ТаблБаллыПоПредмету[Предмет],Вычисления!$C25,ТаблБаллыПоПредмету[Тип],Вычисления!AH$5)*Параметры!J28,\"\")","v":""},{"$f":"IFERROR(AVERAGEIFS(ТаблБаллыПоПредмету[Оценка],ТаблБаллыПоПредмету[Предмет],Вычисления!$C25,ТаблБаллыПоПредмету[Тип],Вычисления!AI$5)*Параметры!K28,\"\")","v":""},0,{"$f":"SUMIFS(Параметры!E28:K28,Вычисления!AC25:AI25,\">0\")","v":0},"","",""]
[null,null,{"$f":"IF(Параметры!C29=\"\",\"\",Параметры!C29)","v":""},"","","","","","","","","","","","","","","","","","","","","","","","","",{"$f":"IFERROR(AVERAGEIFS(ТаблБаллыПоПредмету[Оценка],ТаблБаллыПоПредмету[Предмет],Вычисления!$C26,ТаблБаллыПоПредмету[Тип],Вычисления!AC$5)*Параметры!E29,\"\")","v":""},{"$f":"IFERROR(AVERAGEIFS(ТаблБаллыПоПредмету[Оценка],ТаблБаллыПоПредмету[Предмет],Вычисления!$C26,ТаблБаллыПоПредмету[Тип],Вычисления!AD$5)*Параметры!F29,\"\")","v":""},{"$f":"IFERROR(AVERAGEIFS(ТаблБаллыПоПредмету[Оценка],ТаблБаллыПоПредмету[Предмет],Вычисления!$C26,ТаблБаллыПоПредмету[Тип],Вычисления!AE$5)*Параметры!G29,\"\")","v":""},{"$f":"IFERROR(AVERAGEIFS(ТаблБаллыПоПредмету[Оценка],ТаблБаллыПоПредмету[Предмет],Вычисления!$C26,ТаблБаллыПоПредмету[Тип],Вычисления!AF$5)*Параметры!H29,\"\")","v":""},{"$f":"IFERROR(AVERAGEIFS(ТаблБаллыПоПредмету[Оценка],ТаблБаллыПоПредмету[Предмет],Вычисления!$C26,ТаблБаллыПоПредмету[Тип],Вычисления!AG$5)*Параметры!I29,\"\")","v":""},{"$f":"IFERROR(AVERAGEIFS(ТаблБаллыПоПредмету[Оценка],ТаблБаллыПоПредмету[Предмет],Вычисления!$C26,ТаблБаллыПоПредмету[Тип],Вычисления!AH$5)*Параметры!J29,\"\")","v":""},{"$f":"IFERROR(AVERAGEIFS(ТаблБаллыПоПредмету[Оценка],ТаблБаллыПоПредмету[Предмет],Вычисления!$C26,ТаблБаллыПоПредмету[Тип],Вычисления!AI$5)*Параметры!K29,\"\")","v":""},0,{"$f":"SUMIFS(Параметры!E29:K29,Вычисления!AC26:AI26,\">0\")","v":0},"","",""]
[null,null,{"$f":"IF(Параметры!C30=\"\",\"\",Параметры!C30)","v":""},"","","","","","","","","","","","","","","","","","","","","","","","","",{"$f":"IFERROR(AVERAGEIFS(ТаблБаллыПоПредмету[Оценка],ТаблБаллыПоПредмету[Предмет],Вычисления!$C27,ТаблБаллыПоПредмету[Тип],Вычисления!AC$5)*Параметры!E30,\"\")","v":""},{"$f":"IFERROR(AVERAGEIFS(ТаблБаллыПоПредмету[Оценка],ТаблБаллыПоПредмету[Предмет],Вычисления!$C27,ТаблБаллыПоПредмету[Тип],Вычисления!AD$5)*Параметры!F30,\"\")","v":""},{"$f":"IFERROR(AVERAGEIFS(ТаблБаллыПоПредмету[Оценка],ТаблБаллыПоПредмету[Предмет],Вычисления!$C27,ТаблБаллыПоПредмету[Тип],Вычисления!AE$5)*Параметры!G30,\"\")","v":""},{"$f":"IFERROR(AVERAGEIFS(ТаблБаллыПоПредмету[Оценка],ТаблБаллыПоПредмету[Предмет],Вычисления!$C27,ТаблБаллыПоПредмету[Тип],Вычисления!AF$5)*Параметры!H30,\"\")","v":""},{"$f":"IFERROR(AVERAGEIFS(ТаблБаллыПоПредмету[Оценка],ТаблБаллыПоПредмету[Предмет],Вычисления!$C27,ТаблБаллыПоПредмету[Тип],Вычисления!AG$5)*Параметры!I30,\"\")","v":""},{"$f":"IFERROR(AVERAGEIFS(ТаблБаллыПоПредмету[Оценка],ТаблБаллыПоПредмету[Предмет],Вычисления!$C27,ТаблБаллыПоПредмету[Тип],Вычисления!AH$5)*Параметры!J30,\"\")","v":""},{"$f":"IFERROR(AVERAGEIFS(ТаблБаллыПоПредмету[Оценка],ТаблБаллыПоПредмету[Предмет],Вычисления!$C27,ТаблБаллыПоПредмету[Тип],Вычисления!AI$5)*Параметры!K30,\"\")","v":""},0,{"$f":"SUMIFS(Параметры!E30:K30,Вычисления!AC27:AI27,\">0\")","v":0},"","",""]
[null,null,{"$f":"IF(Параметры!C31=\"\",\"\",Параметры!C31)","v":""},"","","","","","","","","","","","","","","","","","","","","","","","","",{"$f":"IFERROR(AVERAGEIFS(ТаблБаллыПоПредмету[Оценка],ТаблБаллыПоПредмету[Предмет],Вычисления!$C28,ТаблБаллыПоПредмету[Тип],Вычисления!AC$5)*Параметры!E31,\"\")","v":""},{"$f":"IFERROR(AVERAGEIFS(ТаблБаллыПоПредмету[Оценка],ТаблБаллыПоПредмету[Предмет],Вычисления!$C28,ТаблБаллыПоПредмету[Тип],Вычисления!AD$5)*Параметры!F31,\"\")","v":""},{"$f":"IFERROR(AVERAGEIFS(ТаблБаллыПоПредмету[Оценка],ТаблБаллыПоПредмету[Предмет],Вычисления!$C28,ТаблБаллыПоПредмету[Тип],Вычисления!AE$5)*Параметры!G31,\"\")","v":""},{"$f":"IFERROR(AVERAGEIFS(ТаблБаллыПоПредмету[Оценка],ТаблБаллыПоПредмету[Предмет],Вычисления!$C28,ТаблБаллыПоПредмету[Тип],Вычисления!AF$5)*Параметры!H31,\"\")","v":""},{"$f":"IFERROR(AVERAGEIFS(ТаблБаллыПоПредмету[Оценка],ТаблБаллыПоПредмету[Предмет],Вычисления!$C28,ТаблБаллыПоПредмету[Тип],Вычисления!AG$5)*Параметры!I31,\"\")","v":""},{"$f":"IFERROR(AVERAGEIFS(ТаблБаллыПоПредмету[Оценка],ТаблБаллыПоПредмету[Предмет],Вычисления!$C28,ТаблБаллыПоПредмету[Тип],Вычисления!AH$5)*Параметры!J31,\"\")","v":""},{"$f":"IFERROR(AVERAGEIFS(ТаблБаллыПоПредмету[Оценка],ТаблБаллыПоПредмету[Предмет],Вычисления!$C28,ТаблБаллыПоПредмету[Тип],Вычисления!AI$5)*Параметры!K31,\"\")","v":""},0,{"$f":"SUMIFS(Параметры!E31:K31,Вычисления!AC28:AI28,\">0\")","v":0},"","",""]
[null,null,{"$f":"IF(Параметры!C32=\"\",\"\",Параметры!C32)","v":""},"","","","","","","","","","","","","","","","","","","","","","","","","",{"$f":"IFERROR(AVERAGEIFS(ТаблБаллыПоПредмету[Оценка],ТаблБаллыПоПредмету[Предмет],Вычисления!$C29,ТаблБаллыПоПредмету[Тип],Вычисления!AC$5)*Параметры!E32,\"\")","v":""},{"$f":"IFERROR(AVERAGEIFS(ТаблБаллыПоПредмету[Оценка],ТаблБаллыПоПредмету[Предмет],Вычисления!$C29,ТаблБаллыПоПредмету[Тип],Вычисления!AD$5)*Параметры!F32,\"\")","v":""},{"$f":"IFERROR(AVERAGEIFS(ТаблБаллыПоПредмету[Оценка],ТаблБаллыПоПредмету[Предмет],Вычисления!$C29,ТаблБаллыПоПредмету[Тип],Вычисления!AE$5)*Параметры!G32,\"\")","v":""},{"$f":"IFERROR(AVERAGEIFS(ТаблБаллыПоПредмету[Оценка],ТаблБаллыПоПредмету[Предмет],Вычисления!$C29,ТаблБаллыПоПредмету[Тип],Вычисления!AF$5)*Параметры!H32,\"\")","v":""},{"$f":"IFERROR(AVERAGEIFS(ТаблБаллыПоПредмету[Оценка],ТаблБаллыПоПредмету[Предмет],Вычисления!$C29,ТаблБаллыПоПредмету[Тип],Вычисления!AG$5)*Параметры!I32,\"\")","v":""},{"$f":"IFERROR(AVERAGEIFS(ТаблБаллыПоПредмету[Оценка],ТаблБаллыПоПредмету[Предмет],Вычисления!$C29,ТаблБаллыПоПредмету[Тип],Вычисления!AH$5)*Параметры!J32,\"\")","v":""},{"$f":"IFERROR(AVERAGEIFS(ТаблБаллыПоПредмету[Оценка],ТаблБаллыПоПредмету[Предмет],Вычисления!$C29,ТаблБаллыПоПредмету[Тип],Вычисления!AI$5)*Параметры!K32,\"\")","v":""},0,{"$f":"SUMIFS(Параметры!E32:K32,Вычисления!AC29:AI29,\">0\")","v":0},"","",""]
[null,null,{"$f":"IF(Параметры!C33=\"\",\"\",Параметры!C33)","v":""},"","","","","","","","","","","","","","","","","","","","","","","","","",{"$f":"IFERROR(AVERAGEIFS(ТаблБаллыПоПредмету[Оценка],ТаблБаллыПоПредмету[Предмет],Вычисления!$C30,ТаблБаллыПоПредмету[Тип],Вычисления!AC$5)*Параметры!E33,\"\")","v":""},{"$f":"IFERROR(AVERAGEIFS(ТаблБаллыПоПредмету[Оценка],ТаблБаллыПоПредмету[Предмет],Вычисления!$C30,ТаблБаллыПоПредмету[Тип],Вычисления!AD$5)*Параметры!F33,\"\")","v":""},{"$f":"IFERROR(AVERAGEIFS(ТаблБаллыПоПредмету[Оценка],ТаблБаллыПоПредмету[Предмет],Вычисления!$C30,ТаблБаллыПоПредмету[Тип],Вычисления!AE$5)*Параметры!G33,\"\")","v":""},{"$f":"IFERROR(AVERAGEIFS(ТаблБаллыПоПредмету[Оценка],ТаблБаллыПоПредмету[Предмет],Вычисления!$C30,ТаблБаллыПоПредмету[Тип],Вычисления!AF$5)*Параметры!H33,\"\")","v":""},{"$f":"IFERROR(AVERAGEIFS(ТаблБаллыПоПредмету[Оценка],ТаблБаллыПоПредмету[Предмет],Вычисления!$C30,ТаблБаллыПоПредмету[Тип],Вычисления!AG$5)*Параметры!I33,\"\")","v":""},{"$f":"IFERROR(AVERAGEIFS(ТаблБаллыПоПредмету[Оценка],ТаблБаллыПоПредмету[Предмет],Вычисления!$C30,ТаблБаллыПоПредмету[Тип],Вычисления!AH$5)*Параметры!J33,\"\")","v":""},{"$f":"IFERROR(AVERAGEIFS(ТаблБаллыПоПредмету[Оценка],ТаблБаллыПоПредмету[Предмет],Вычисления!$C30,ТаблБаллыПоПредмету[Тип],Вычисления!AI$5)*Параметры!K33,\"\")","v":""},0,{"$f":"SUMIFS(Параметры!E33:K33,Вычисления!AC30:AI30,\">0\")","v":0},"","",""]
[]
[]
[null,1,{"$f":"'Мониторинг оценок'!C4&COUNTIF('Мониторинг оценок'!$C$4:C4,'Мониторинг оценок'!C4)","v":"Современный французский язык1"}]
[null,2,{"$f":"'Мониторинг оценок'!C5&COUNTIF('Мониторинг оценок'!$C$4:C5,'Мониторинг оценок'!C5)","v":"Продвинутое программирование на Java1"}]
[null,3,{"$f":"'Мониторинг оценок'!C6&COUNTIF('Мониторинг оценок'!$C$4:C6,'Мониторинг оценок'!C6)","v":"Испанский1"}]
[null,4,{"$f":"'Мониторинг оценок'!C7&COUNTIF('Мониторинг оценок'!$C$4:C7,'Мониторинг оценок'!C7)","v":"Теоретическая физика1"}]
[null,5,{"$f":"'Мониторинг оценок'!C8&COUNTIF('Мониторинг оценок'!$C$4:C8,'Мониторинг оценок'!C8)","v":"Современный французский язык2"}]
[null,6,{"$f":"'Мониторинг оценок'!C9&COUNTIF('Мониторинг оценок'!$C$4:C9,'Мониторинг оценок'!C9)","v":"Современный французский язык3"}]
[null,7,{"$f":"'Мониторинг оценок'!C10&COUNTIF('Мониторинг оценок'!$C$4:C10,'Мониторинг оценок'!C10)","v":"Сочинение1"}]
[null,8,{"$f":"'Мониторинг оценок'!C11&COUNTIF('Мониторинг оценок'!$C$4:C11,'Мониторинг оценок'!C11)","v":"Математика 11"}]
[null,9,{"$f":"'Мониторинг оценок'!C12&COUNTIF('Мониторинг оценок'!$C$4:C12,'Мониторинг оценок'!C12)","v":"Математика 21"}]
[null,10,{"$f":"'Мониторинг оценок'!C13&COUNTIF('Мониторинг оценок'!$C$4:C14,'Мониторинг оценок'!C13)","v":"Математика 12"}]
[null,11,{"$f":"'Мониторинг оценок'!C14&COUNTIF('Мониторинг оценок'!$C$4:C14,'Мониторинг оценок'!C14)","v":"Математика 22"}]
[null,12,{"$f":"'Мониторинг оценок'!C15&COUNTIF('Мониторинг оценок'!$C$4:C15,'Мониторинг оценок'!C15)","v":"0"}]
[null,13,{"$f":"'Мониторинг оценок'!C16&COUNTIF('Мониторинг оценок'!$C$4:C16,'Мониторинг оценок'!C16)","v":"0"}]
[null,14,{"$f":"'Мониторинг оценок'!C17&COUNTIF('Мониторинг оценок'!$C$4:C17,'Мониторинг оценок'!C17)","v":"0"}]
[null,15,{"$f":"'Мониторинг оценок'!C18&COUNTIF('Мониторинг оценок'!$C$4:C18,'Мониторинг оценок'!C18)","v":"0"}]
[null,16,{"$f":"'Мониторинг оценок'!C19&COUNTIF('Мониторинг оценок'!$C$4:C19,'Мониторинг оценок'!C19)","v":"0"}]
[null,17,{"$f":"'Мониторинг оценок'!C20&COUNTIF('Мониторинг оценок'!$C$4:C20,'Мониторинг оценок'!C20)","v":"0"}]
[null,18,{"$f":"'Мониторинг оценок'!C21&COUNTIF('Мониторинг оценок'!$C$4:C21,'Мониторинг оценок'!C21)","v":"0"}]
[null,19,{"$f":"'Мониторинг оценок'!C22&COUNTIF('Мониторинг оценок'!$C$4:C22,'Мониторинг оценок'!C22)","v":"0"}]
[null,20,{"$f":"'Мониторинг оценок'!C23&COUNTIF('Мониторинг оценок'!$C$4:C23,'Мониторинг оценок'!C23)","v":"0"}]
[null,21,{"$f":"'Мониторинг оценок'!C24&COUNTIF('Мониторинг оценок'!$C$4:C24,'Мониторинг оценок'!C24)","v":"0"}]
[null,22,{"$f":"'Мониторинг оценок'!C25&COUNTIF('Мониторинг оценок'!$C$4:C25,'Мониторинг оценок'!C25)","v":"0"}]
[null,23,{"$f":"'Мониторинг оценок'!C26&COUNTIF('Мониторинг оценок'!$C$4:C26,'Мониторинг оценок'!C26)","v":"0"}]
[null,24,{"$f":"'Мониторинг оценок'!C27&COUNTIF('Мониторинг оценок'!$C$4:C27,'Мониторинг оценок'!C27)","v":"0"}]
[null,25,{"$f":"'Мониторинг оценок'!C28&COUNTIF('Мониторинг оценок'!$C$4:C28,'Мониторинг оценок'!C28)","v":"0"}]
[null,26,{"$f":"'Мониторинг оценок'!C29&COUNTIF('Мониторинг оценок'!$C$4:C29,'Мониторинг оценок'!C29)","v":"0"}]
[null,27,{"$f":"'Мониторинг оценок'!C30&COUNTIF('Мониторинг оценок'!$C$4:C30,'Мониторинг оценок'!C30)","v":"0"}]
[null,28,{"$f":"'Мониторинг оценок'!C31&COUNTIF('Мониторинг оценок'!$C$4:C31,'Мониторинг оценок'!C31)","v":"0"}]
[null,29,{"$f":"'Мониторинг оценок'!C32&COUNTIF('Мониторинг оценок'!$C$4:C32,'Мониторинг оценок'!C32)","v":"0"}]
[null,30,{"$f":"'Мониторинг оценок'!C33&COUNTIF('Мониторинг оценок'!$C$4:C33,'Мониторинг оценок'!C33)","v":"0"}]
[null,31,{"$f":"'Мониторинг оценок'!C34&COUNTIF('Мониторинг оценок'!$C$4:C34,'Мониторинг оценок'!C34)","v":"0"}]
[null,32,{"$f":"'Мониторинг оценок'!C35&COUNTIF('Мониторинг оценок'!$C$4:C35,'Мониторинг оценок'!C35)","v":"0"}]
[null,33,{"$f":"'Мониторинг оценок'!C36&COUNTIF('Мониторинг оценок'!$C$4:C36,'Мониторинг оценок'!C36)","v":"0"}]
[null,34,{"$f":"'Мониторинг оценок'!C37&COUNTIF('Мониторинг оценок'!$C$4:C37,'Мониторинг оценок'!C37)","v":"0"}]
[null,35,{"$f":"'Мониторинг оценок'!C38&COUNTIF('Мониторинг оценок'!$C$4:C38,'Мониторинг оценок'!C38)","v":"0"}]
[null,36,{"$f":"'Мониторинг оценок'!C39&COUNTIF('Мониторинг оценок'!$C$4:C39,'Мониторинг оценок'!C39)","v":"0"}]
[null,37,{"$f":"'Мониторинг оценок'!C40&COUNTIF('Мониторинг оценок'!$C$4:C40,'Мониторинг оценок'!C40)","v":"0"}]
[null,38,{"$f":"'Мониторинг оценок'!C41&COUNTIF('Мониторинг оценок'!$C$4:C41,'Мониторинг оценок'!C41)","v":"0"}]
[null,39,{"$f":"'Мониторинг оценок'!C42&COUNTIF('Мониторинг оценок'!$C$4:C42,'Мониторинг оценок'!C42)","v":"0"}]
[null,40,{"$f":"'Мониторинг оценок'!C43&COUNTIF('Мониторинг оценок'!$C$4:C43,'Мониторинг оценок'!C43)","v":"0"}]
[null,41,{"$f":"'Мониторинг оценок'!C44&COUNTIF('Мониторинг оценок'!$C$4:C44,'Мониторинг оценок'!C44)","v":"0"}]
[null,42,{"$f":"'Мониторинг оценок'!C45&COUNTIF('Мониторинг оценок'!$C$4:C45,'Мониторинг оценок'!C45)","v":"0"}]
[null,43,{"$f":"'Мониторинг оценок'!C46&COUNTIF('Мониторинг оценок'!$C$4:C46,'Мониторинг оценок'!C46)","v":"0"}]
[null,44,{"$f":"'Мониторинг оценок'!C47&COUNTIF('Мониторинг оценок'!$C$4:C47,'Мониторинг оценок'!C47)","v":"0"}]
[null,45,{"$f":"'Мониторинг оценок'!C48&COUNTIF('Мониторинг оценок'!$C$4:C48,'Мониторинг оценок'!C48)","v":"0"}]
[null,46,{"$f":"'Мониторинг оценок'!C49&COUNTIF('Мониторинг оценок'!$C$4:C49,'Мониторинг оценок'!C49)","v":"0"}]
[null,47,{"$f":"'Мониторинг оценок'!C50&COUNTIF('Мониторинг оценок'!$C$4:C50,'Мониторинг оценок'!C50)","v":"0"}]
[null,48,{"$f":"'Мониторинг оценок'!C51&COUNTIF('Мониторинг оценок'!$C$4:C51,'Мониторинг оценок'!C51)","v":"0"}]
[null,49,{"$f":"'Мониторинг оценок'!C52&COUNTIF('Мониторинг оценок'!$C$4:C52,'Мониторинг оценок'!C52)","v":"0"}]
[null,50,{"$f":"'Мониторинг оценок'!C53&COUNTIF('Мониторинг оценок'!$C$4:C53,'Мониторинг оценок'!C53)","v":"0"}]
[null,51,{"$f":"'Мониторинг оценок'!C54&COUNTIF('Мониторинг оценок'!$C$4:C54,'Мониторинг оценок'!C54)","v":"0"}]
[null,52,{"$f":"'Мониторинг оценок'!C55&COUNTIF('Мониторинг оценок'!$C$4:C55,'Мониторинг оценок'!C55)","v":"0"}]
[null,53,{"$f":"'Мониторинг оценок'!C56&COUNTIF('Мониторинг оценок'!$C$4:C56,'Мониторинг оценок'!C56)","v":"0"}]
[null,54,{"$f":"'Мониторинг оценок'!C57&COUNTIF('Мониторинг оценок'!$C$4:C57,'Мониторинг оценок'!C57)","v":"0"}]
[null,55,{"$f":"'Мониторинг оценок'!C58&COUNTIF('Мониторинг оценок'!$C$4:C58,'Мониторинг оценок'!C58)","v":"0"}]
[null,56,{"$f":"'Мониторинг оценок'!C59&COUNTIF('Мониторинг оценок'!$C$4:C59,'Мониторинг оценок'!C59)","v":"0"}]
[null,57,{"$f":"'Мониторинг оценок'!C60&COUNTIF('Мониторинг оценок'!$C$4:C60,'Мониторинг оценок'!C60)","v":"0"}]
[null,58,{"$f":"'Мониторинг оценок'!C61&COUNTIF('Мониторинг оценок'!$C$4:C61,'Мониторинг оценок'!C61)","v":"0"}]
[null,59,{"$f":"'Мониторинг оценок'!C62&COUNTIF('Мониторинг оценок'!$C$4:C62,'Мониторинг оценок'!C62)","v":"0"}]
[null,60,{"$f":"'Мониторинг оценок'!C63&COUNTIF('Мониторинг оценок'!$C$4:C63,'Мониторинг оценок'!C63)","v":"0"}]
[null,61,{"$f":"'Мониторинг оценок'!C64&COUNTIF('Мониторинг оценок'!$C$4:C64,'Мониторинг оценок'!C64)","v":"0"}]
[null,62,{"$f":"'Мониторинг оценок'!C65&COUNTIF('Мониторинг оценок'!$C$4:C65,'Мониторинг оценок'!C65)","v":"0"}]
[null,63,{"$f":"'Мониторинг оценок'!C66&COUNTIF('Мониторинг оценок'!$C$4:C66,'Мониторинг оценок'!C66)","v":"0"}]
[null,64,{"$f":"'Мониторинг оценок'!C67&COUNTIF('Мониторинг оценок'!$C$4:C67,'Мониторинг оценок'!C67)","v":"0"}]
[null,65,{"$f":"'Мониторинг оценок'!C68&COUNTIF('Мониторинг оценок'!$C$4:C68,'Мониторинг оценок'!C68)","v":"0"}]
[null,66,{"$f":"'Мониторинг оценок'!C69&COUNTIF('Мониторинг оценок'!$C$4:C69,'Мониторинг оценок'!C69)","v":"0"}]
[null,67,{"$f":"'Мониторинг оценок'!C70&COUNTIF('Мониторинг оценок'!$C$4:C70,'Мониторинг оценок'!C70)","v":"0"}]
[null,68,{"$f":"'Мониторинг оценок'!C71&COUNTIF('Мониторинг оценок'!$C$4:C71,'Мониторинг оценок'!C71)","v":"0"}]
[null,69,{"$f":"'Мониторинг оценок'!C72&COUNTIF('Мониторинг оценок'!$C$4:C72,'Мониторинг оценок'!C72)","v":"0"}]
[null,70,{"$f":"'Мониторинг оценок'!C73&COUNTIF('Мониторинг оценок'!$C$4:C73,'Мониторинг оценок'!C73)","v":"0"}]
[null,71,{"$f":"'Мониторинг оценок'!C74&COUNTIF('Мониторинг оценок'!$C$4:C74,'Мониторинг оценок'!C74)","v":"0"}]
[null,72,{"$f":"'Мониторинг оценок'!C75&COUNTIF('Мониторинг оценок'!$C$4:C75,'Мониторинг оценок'!C75)","v":"0"}]
[null,73,{"$f":"'Мониторинг оценок'!C76&COUNTIF('Мониторинг оценок'!$C$4:C76,'Мониторинг оценок'!C76)","v":"0"}]
[null,74,{"$f":"'Мониторинг оценок'!C77&COUNTIF('Мониторинг оценок'!$C$4:C77,'Мониторинг оценок'!C77)","v":"0"}]
[null,75,{"$f":"'Мониторинг оценок'!C78&COUNTIF('Мониторинг оценок'!$C$4:C78,'Мониторинг оценок'!C78)","v":"0"}]
[null,76,{"$f":"'Мониторинг оценок'!C79&COUNTIF('Мониторинг оценок'!$C$4:C79,'Мониторинг оценок'!C79)","v":"0"}]
[null,77,{"$f":"'Мониторинг оценок'!C80&COUNTIF('Мониторинг оценок'!$C$4:C80,'Мониторинг оценок'!C80)","v":"0"}]
[null,78,{"$f":"'Мониторинг оценок'!C81&COUNTIF('Мониторинг оценок'!$C$4:C81,'Мониторинг оценок'!C81)","v":"0"}]
[null,79,{"$f":"'Мониторинг оценок'!C82&COUNTIF('Мониторинг оценок'!$C$4:C82,'Мониторинг оценок'!C82)","v":"0"}]
[null,80,{"$f":"'Мониторинг оценок'!C83&COUNTIF('Мониторинг оценок'!$C$4:C83,'Мониторинг оценок'!C83)","v":"0"}]
[null,81,{"$f":"'Мониторинг оценок'!C84&COUNTIF('Мониторинг оценок'!$C$4:C84,'Мониторинг оценок'!C84)","v":"0"}]
[null,82,{"$f":"'Мониторинг оценок'!C85&COUNTIF('Мониторинг оценок'!$C$4:C85,'Мониторинг оценок'!C85)","v":"0"}]
[null,83,{"$f":"'Мониторинг оценок'!C86&COUNTIF('Мониторинг оценок'!$C$4:C86,'Мониторинг оценок'!C86)","v":"0"}]
[null,84,{"$f":"'Мониторинг оценок'!C87&COUNTIF('Мониторинг оценок'!$C$4:C87,'Мониторинг оценок'!C87)","v":"0"}]
[null,85,{"$f":"'Мониторинг оценок'!C88&COUNTIF('Мониторинг оценок'!$C$4:C88,'Мониторинг оценок'!C88)","v":"0"}]
[null,86,{"$f":"'Мониторинг оценок'!C89&COUNTIF('Мониторинг оценок'!$C$4:C89,'Мониторинг оценок'!C89)","v":"0"}]
[null,87,{"$f":"'Мониторинг оценок'!C90&COUNTIF('Мониторинг оценок'!$C$4:C90,'Мониторинг оценок'!C90)","v":"0"}]
[null,88,{"$f":"'Мониторинг оценок'!C91&COUNTIF('Мониторинг оценок'!$C$4:C91,'Мониторинг оценок'!C91)","v":"0"}]
[null,89,{"$f":"'Мониторинг оценок'!C92&COUNTIF('Мониторинг оценок'!$C$4:C92,'Мониторинг оценок'!C92)","v":"0"}]
[null,90,{"$f":"'Мониторинг оценок'!C93&COUNTIF('Мониторинг оценок'!$C$4:C93,'Мониторинг оценок'!C93)","v":"0"}]
[null,91,{"$f":"'Мониторинг оценок'!C94&COUNTIF('Мониторинг оценок'!$C$4:C94,'Мониторинг оценок'!C94)","v":"0"}]
[null,92,{"$f":"'Мониторинг оценок'!C95&COUNTIF('Мониторинг оценок'!$C$4:C95,'Мониторинг оценок'!C95)","v":"0"}]
[null,93,{"$f":"'Мониторинг оценок'!C96&COUNTIF('Мониторинг оценок'!$C$4:C96,'Мониторинг оценок'!C96)","v":"0"}]
[null,94,{"$f":"'Мониторинг оценок'!C97&COUNTIF('Мониторинг оценок'!$C$4:C97,'Мониторинг оценок'!C97)","v":"0"}]
[null,95,{"$f":"'Мониторинг оценок'!C98&COUNTIF('Мониторинг оценок'!$C$4:C98,'Мониторинг оценок'!C98)","v":"0"}]
[null,96,{"$f":"'Мониторинг оценок'!C99&COUNTIF('Мониторинг оценок'!$C$4:C99,'Мониторинг оценок'!C99)","v":"0"}]
[null,97,{"$f":"'Мониторинг оценок'!C100&COUNTIF('Мониторинг оценок'!$C$4:C100,'Мониторинг оценок'!C100)","v":"0"}]
[null,98,{"$f":"'Мониторинг оценок'!C101&COUNTIF('Мониторинг оценок'!$C$4:C101,'Мониторинг оценок'!C101)","v":"0"}]
[null,99,{"$f":"'Мониторинг оценок'!C102&COUNTIF('Мониторинг оценок'!$C$4:C102,'Мониторинг оценок'!C102)","v":"0"}]
[null,100,{"$f":"'Мониторинг оценок'!C103&COUNTIF('Мониторинг оценок'!$C$4:C103,'Мониторинг оценок'!C103)","v":"0"}]
[null,101,{"$f":"'Мониторинг оценок'!C104&COUNTIF('Мониторинг оценок'!$C$4:C104,'Мониторинг оценок'!C104)","v":"0"}]
[null,102,{"$f":"'Мониторинг оценок'!C105&COUNTIF('Мониторинг оценок'!$C$4:C105,'Мониторинг оценок'!C105)","v":"0"}]
[null,103,{"$f":"'Мониторинг оценок'!C106&COUNTIF('Мониторинг оценок'!$C$4:C106,'Мониторинг оценок'!C106)","v":"0"}]
[null,104,{"$f":"'Мониторинг оценок'!C107&COUNTIF('Мониторинг оценок'!$C$4:C107,'Мониторинг оценок'!C107)","v":"0"}]
[null,105,{"$f":"'Мониторинг оценок'!C108&COUNTIF('Мониторинг оценок'!$C$4:C108,'Мониторинг оценок'!C108)","v":"0"}]
[null,106,{"$f":"'Мониторинг оценок'!C109&COUNTIF('Мониторинг оценок'!$C$4:C109,'Мониторинг оценок'!C109)","v":"0"}]
[null,107,{"$f":"'Мониторинг оценок'!C110&COUNTIF('Мониторинг оценок'!$C$4:C110,'Мониторинг оценок'!C110)","v":"0"}]
[null,108,{"$f":"'Мониторинг оценок'!C111&COUNTIF('Мониторинг оценок'!$C$4:C111,'Мониторинг оценок'!C111)","v":"0"}]
[null,109,{"$f":"'Мониторинг оценок'!C112&COUNTIF('Мониторинг оценок'!$C$4:C112,'Мониторинг оценок'!C112)","v":"0"}]
[null,110,{"$f":"'Мониторинг оценок'!C113&COUNTIF('Мониторинг оценок'!$C$4:C113,'Мониторинг оценок'!C113)","v":"0"}]
[null,111,{"$f":"'Мониторинг оценок'!C114&COUNTIF('Мониторинг оценок'!$C$4:C114,'Мониторинг оценок'!C114)","v":"0"}]
[null,112,{"$f":"'Мониторинг оценок'!C115&COUNTIF('Мониторинг оценок'!$C$4:C115,'Мониторинг оценок'!C115)","v":"0"}]
[null,113,{"$f":"'Мониторинг оценок'!C116&COUNTIF('Мониторинг оценок'!$C$4:C116,'Мониторинг оценок'!C116)","v":"0"}]
[null,114,{"$f":"'Мониторинг оценок'!C117&COUNTIF('Мониторинг оценок'!$C$4:C117,'Мониторинг оценок'!C117)","v":"0"}]
[null,115,{"$f":"'Мониторинг оценок'!C118&COUNTIF('Мониторинг оценок'!$C$4:C118,'Мониторинг оценок'!C118)","v":"0"}]
[null,116,{"$f":"'Мониторинг оценок'!C119&COUNTIF('Мониторинг оценок'!$C$4:C119,'Мониторинг оценок'!C119)","v":"0"}]
[null,117,{"$f":"'Мониторинг оценок'!C120&COUNTIF('Мониторинг оценок'!$C$4:C120,'Мониторинг оценок'!C120)","v":"0"}]
[null,118,{"$f":"'Мониторинг оценок'!C121&COUNTIF('Мониторинг оценок'!$C$4:C121,'Мониторинг оценок'!C121)","v":"0"}]
[null,119,{"$f":"'Мониторинг оценок'!C122&COUNTIF('Мониторинг оценок'!$C$4:C122,'Мониторинг оценок'!C122)","v":"0"}]
[null,120,{"$f":"'Мониторинг оценок'!C123&COUNTIF('Мониторинг оценок'!$C$4:C123,'Мониторинг оценок'!C123)","v":"0"}]
[null,121,{"$f":"'Мониторинг оценок'!C124&COUNTIF('Мониторинг оценок'!$C$4:C124,'Мониторинг оценок'!C124)","v":"0"}]
[null,122,{"$f":"'Мониторинг оценок'!C125&COUNTIF('Мониторинг оценок'!$C$4:C125,'Мониторинг оценок'!C125)","v":"0"}]
[null,123,{"$f":"'Мониторинг оценок'!C126&COUNTIF('Мониторинг оценок'!$C$4:C126,'Мониторинг оценок'!C126)","v":"0"}]
[null,124,{"$f":"'Мониторинг оценок'!C127&COUNTIF('Мониторинг оценок'!$C$4:C127,'Мониторинг оценок'!C127)","v":"0"}]
[null,125,{"$f":"'Мониторинг оценок'!C128&COUNTIF('Мониторинг оценок'!$C$4:C128,'Мониторинг оценок'!C128)","v":"0"}]
[null,126,{"$f":"'Мониторинг оценок'!C129&COUNTIF('Мониторинг оценок'!$C$4:C129,'Мониторинг оценок'!C129)","v":"0"}]
[null,127,{"$f":"'Мониторинг оценок'!C130&COUNTIF('Мониторинг оценок'!$C$4:C130,'Мониторинг оценок'!C130)","v":"0"}]
[null,128,{"$f":"'Мониторинг оценок'!C131&COUNTIF('Мониторинг оценок'!$C$4:C131,'Мониторинг оценок'!C131)","v":"0"}]
[null,129,{"$f":"'Мониторинг оценок'!C132&COUNTIF('Мониторинг оценок'!$C$4:C132,'Мониторинг оценок'!C132)","v":"0"}]
[null,130,{"$f":"'Мониторинг оценок'!C133&COUNTIF('Мониторинг оценок'!$C$4:C133,'Мониторинг оценок'!C133)","v":"0"}]
[null,131,{"$f":"'Мониторинг оценок'!C134&COUNTIF('Мониторинг оценок'!$C$4:C134,'Мониторинг оценок'!C134)","v":"0"}]
[null,132,{"$f":"'Мониторинг оценок'!C135&COUNTIF('Мониторинг оценок'!$C$4:C135,'Мониторинг оценок'!C135)","v":"0"}]
[null,133,{"$f":"'Мониторинг оценок'!C136&COUNTIF('Мониторинг оценок'!$C$4:C136,'Мониторинг оценок'!C136)","v":"0"}]
[null,134,{"$f":"'Мониторинг оценок'!C137&COUNTIF('Мониторинг оценок'!$C$4:C137,'Мониторинг оценок'!C137)","v":"0"}]
[null,135,{"$f":"'Мониторинг оценок'!C138&COUNTIF('Мониторинг оценок'!$C$4:C138,'Мониторинг оценок'!C138)","v":"0"}]
[null,136,{"$f":"'Мониторинг оценок'!C139&COUNTIF('Мониторинг оценок'!$C$4:C139,'Мониторинг оценок'!C139)","v":"0"}]
[null,137,{"$f":"'Мониторинг оценок'!C140&COUNTIF('Мониторинг оценок'!$C$4:C140,'Мониторинг оценок'!C140)","v":"0"}]
[null,138,{"$f":"'Мониторинг оценок'!C141&COUNTIF('Мониторинг оценок'!$C$4:C141,'Мониторинг оценок'!C141)","v":"0"}]
[null,139,{"$f":"'Мониторинг оценок'!C142&COUNTIF('Мониторинг оценок'!$C$4:C142,'Мониторинг оценок'!C142)","v":"0"}]
[null,140,{"$f":"'Мониторинг оценок'!C143&COUNTIF('Мониторинг оценок'!$C$4:C143,'Мониторинг оценок'!C143)","v":"0"}]
[null,141,{"$f":"'Мониторинг оценок'!C144&COUNTIF('Мониторинг оценок'!$C$4:C144,'Мониторинг оценок'!C144)","v":"0"}]
[null,142,{"$f":"'Мониторинг оценок'!C145&COUNTIF('Мониторинг оценок'!$C$4:C145,'Мониторинг оценок'!C145)","v":"0"}]
[null,143,{"$f":"'Мониторинг оценок'!C146&COUNTIF('Мониторинг оценок'!$C$4:C146,'Мониторинг оценок'!C146)","v":"0"}]
[null,144,{"$f":"'Мониторинг оценок'!C147&COUNTIF('Мониторинг оценок'!$C$4:C147,'Мониторинг оценок'!C147)","v":"0"}]
[null,145,{"$f":"'Мониторинг оценок'!C148&COUNTIF('Мониторинг оценок'!$C$4:C148,'Мониторинг оценок'!C148)","v":"0"}]
[null,146,{"$f":"'Мониторинг оценок'!C149&COUNTIF('Мониторинг оценок'!$C$4:C149,'Мониторинг оценок'!C149)","v":"0"}]
[null,147,{"$f":"'Мониторинг оценок'!C150&COUNTIF('Мониторинг оценок'!$C$4:C150,'Мониторинг оценок'!C150)","v":"0"}]
[null,148,{"$f":"'Мониторинг оценок'!C151&COUNTIF('Мониторинг оценок'!$C$4:C151,'Мониторинг оценок'!C151)","v":"0"}]
[null,149,{"$f":"'Мониторинг оценок'!C152&COUNTIF('Мониторинг оценок'!$C$4:C152,'Мониторинг оценок'!C152)","v":"0"}]
[null,150,{"$f":"'Мониторинг оценок'!C153&COUNTIF('Мониторинг оценок'!$C$4:C153,'Мониторинг оценок'!C153)","v":"0"}]
[null,151,{"$f":"'Мониторинг оценок'!C154&COUNTIF('Мониторинг оценок'!$C$4:C154,'Мониторинг оценок'!C154)","v":"0"}]
[null,152,{"$f":"'Мониторинг оценок'!C155&COUNTIF('Мониторинг оценок'!$C$4:C155,'Мониторинг оценок'!C155)","v":"0"}]
[null,153,{"$f":"'Мониторинг оценок'!C156&COUNTIF('Мониторинг оценок'!$C$4:C156,'Мониторинг оценок'!C156)","v":"0"}]
[null,154,{"$f":"'Мониторинг оценок'!C157&COUNTIF('Мониторинг оценок'!$C$4:C157,'Мониторинг оценок'!C157)","v":"0"}]
[null,155,{"$f":"'Мониторинг оценок'!C158&COUNTIF('Мониторинг оценок'!$C$4:C158,'Мониторинг оценок'!C158)","v":"0"}]
[null,156,{"$f":"'Мониторинг оценок'!C159&COUNTIF('Мониторинг оценок'!$C$4:C159,'Мониторинг оценок'!C159)","v":"0"}]
[null,157,{"$f":"'Мониторинг оценок'!C160&COUNTIF('Мониторинг оценок'!$C$4:C160,'Мониторинг оценок'!C160)","v":"0"}]
[null,158,{"$f":"'Мониторинг оценок'!C161&COUNTIF('Мониторинг оценок'!$C$4:C161,'Мониторинг оценок'!C161)","v":"0"}]
[null,159,{"$f":"'Мониторинг оценок'!C162&COUNTIF('Мониторинг оценок'!$C$4:C162,'Мониторинг оценок'!C162)","v":"0"}]
[null,160,{"$f":"'Мониторинг оценок'!C163&COUNTIF('Мониторинг оценок'!$C$4:C163,'Мониторинг оценок'!C163)","v":"0"}]
[null,161,{"$f":"'Мониторинг оценок'!C164&COUNTIF('Мониторинг оценок'!$C$4:C164,'Мониторинг оценок'!C164)","v":"0"}]
[null,162,{"$f":"'Мониторинг оценок'!C165&COUNTIF('Мониторинг оценок'!$C$4:C165,'Мониторинг оценок'!C165)","v":"0"}]
[null,163,{"$f":"'Мониторинг оценок'!C166&COUNTIF('Мониторинг оценок'!$C$4:C166,'Мониторинг оценок'!C166)","v":"0"}]
[null,164,{"$f":"'Мониторинг оценок'!C167&COUNTIF('Мониторинг оценок'!$C$4:C167,'Мониторинг оценок'!C167)","v":"0"}]
[null,165,{"$f":"'Мониторинг оценок'!C168&COUNTIF('Мониторинг оценок'!$C$4:C168,'Мониторинг оценок'!C168)","v":"0"}]
[null,166,{"$f":"'Мониторинг оценок'!C169&COUNTIF('Мониторинг оценок'!$C$4:C169,'Мониторинг оценок'!C169)","v":"0"}]
[null,167,{"$f":"'Мониторинг оценок'!C170&COUNTIF('Мониторинг оценок'!$C$4:C170,'Мониторинг оценок'!C170)","v":"0"}]
[null,168,{"$f":"'Мониторинг оценок'!C171&COUNTIF('Мониторинг оценок'!$C$4:C171,'Мониторинг оценок'!C171)","v":"0"}]
[null,169,{"$f":"'Мониторинг оценок'!C172&COUNTIF('Мониторинг оценок'!$C$4:C172,'Мониторинг оценок'!C172)","v":"0"}]
[null,170,{"$f":"'Мониторинг оценок'!C173&COUNTIF('Мониторинг оценок'!$C$4:C173,'Мониторинг оценок'!C173)","v":"0"}]
[null,171,{"$f":"'Мониторинг оценок'!C174&COUNTIF('Мониторинг оценок'!$C$4:C174,'Мониторинг оценок'!C174)","v":"0"}]
[null,172,{"$f":"'Мониторинг оценок'!C175&COUNTIF('Мониторинг оценок'!$C$4:C175,'Мониторинг оценок'!C175)","v":"0"}]
[null,173,{"$f":"'Мониторинг оценок'!C176&COUNTIF('Мониторинг оценок'!$C$4:C176,'Мониторинг оценок'!C176)","v":"0"}]
[null,174,{"$f":"'Мониторинг оценок'!C177&COUNTIF('Мониторинг оценок'!$C$4:C177,'Мониторинг оценок'!C177)","v":"0"}]
[null,175,{"$f":"'Мониторинг оценок'!C178&COUNTIF('Мониторинг оценок'!$C$4:C178,'Мониторинг оценок'!C178)","v":"0"}]
[null,176,{"$f":"'Мониторинг оценок'!C179&COUNTIF('Мониторинг оценок'!$C$4:C179,'Мониторинг оценок'!C179)","v":"0"}]
[null,177,{"$f":"'Мониторинг оценок'!C180&COUNTIF('Мониторинг оценок'!$C$4:C180,'Мониторинг оценок'!C180)","v":"0"}]
[null,178,{"$f":"'Мониторинг оценок'!C181&COUNTIF('Мониторинг оценок'!$C$4:C181,'Мониторинг оценок'!C181)","v":"0"}]
[null,179,{"$f":"'Мониторинг оценок'!C182&COUNTIF('Мониторинг оценок'!$C$4:C182,'Мониторинг оценок'!C182)","v":"0"}]
[null,180,{"$f":"'Мониторинг оценок'!C183&COUNTIF('Мониторинг оценок'!$C$4:C183,'Мониторинг оценок'!C183)","v":"0"}]
[null,181,{"$f":"'Мониторинг оценок'!C184&COUNTIF('Мониторинг оценок'!$C$4:C184,'Мониторинг оценок'!C184)","v":"0"}]
[null,182,{"$f":"'Мониторинг оценок'!C185&COUNTIF('Мониторинг оценок'!$C$4:C185,'Мониторинг оценок'!C185)","v":"0"}]
[null,183,{"$f":"'Мониторинг оценок'!C186&COUNTIF('Мониторинг оценок'!$C$4:C186,'Мониторинг оценок'!C186)","v":"0"}]
[null,184,{"$f":"'Мониторинг оценок'!C187&COUNTIF('Мониторинг оценок'!$C$4:C187,'Мониторинг оценок'!C187)","v":"0"}]
[null,185,{"$f":"'Мониторинг оценок'!C188&COUNTIF('Мониторинг оценок'!$C$4:C188,'Мониторинг оценок'!C188)","v":"0"}]
[null,186,{"$f":"'Мониторинг оценок'!C189&COUNTIF('Мониторинг оценок'!$C$4:C189,'Мониторинг оценок'!C189)","v":"0"}]
[null,187,{"$f":"'Мониторинг оценок'!C190&COUNTIF('Мониторинг оценок'!$C$4:C190,'Мониторинг оценок'!C190)","v":"0"}]
[null,188,{"$f":"'Мониторинг оценок'!C191&COUNTIF('Мониторинг оценок'!$C$4:C191,'Мониторинг оценок'!C191)","v":"0"}]
[null,189,{"$f":"'Мониторинг оценок'!C192&COUNTIF('Мониторинг оценок'!$C$4:C192,'Мониторинг оценок'!C192)","v":"0"}]
[null,190,{"$f":"'Мониторинг оценок'!C193&COUNTIF('Мониторинг оценок'!$C$4:C193,'Мониторинг оценок'!C193)","v":"0"}]
[null,191,{"$f":"'Мониторинг оценок'!C194&COUNTIF('Мониторинг оценок'!$C$4:C194,'Мониторинг оценок'!C194)","v":"0"}]
[null,192,{"$f":"'Мониторинг оценок'!C195&COUNTIF('Мониторинг оценок'!$C$4:C195,'Мониторинг оценок'!C195)","v":"0"}]
[null,193,{"$f":"'Мониторинг оценок'!C196&COUNTIF('Мониторинг оценок'!$C$4:C196,'Мониторинг оценок'!C196)","v":"0"}]
[null,194,{"$f":"'Мониторинг оценок'!C197&COUNTIF('Мониторинг оценок'!$C$4:C197,'Мониторинг оценок'!C197)","v":"0"}]
[null,195,{"$f":"'Мониторинг оценок'!C198&COUNTIF('Мониторинг оценок'!$C$4:C198,'Мониторинг оценок'!C198)","v":"0"}]
[null,196,{"$f":"'Мониторинг оценок'!C199&COUNTIF('Мониторинг оценок'!$C$4:C199,'Мониторинг оценок'!C199)","v":"0"}]
[null,197,{"$f":"'Мониторинг оценок'!C200&COUNTIF('Мониторинг оценок'!$C$4:C200,'Мониторинг оценок'!C200)","v":"0"}]
[null,198,{"$f":"'Мониторинг оценок'!C201&COUNTIF('Мониторинг оценок'!$C$4:C201,'Мониторинг оценок'!C201)","v":"0"}]
[null,199,{"$f":"'Мониторинг оценок'!C202&COUNTIF('Мониторинг оценок'!$C$4:C202,'Мониторинг оценок'!C202)","v":"0"}]
[null,200,{"$f":"'Мониторинг оценок'!C203&COUNTIF('Мониторинг оценок'!$C$4:C203,'Мониторинг оценок'!C203)","v":"0"}]
[null,201,{"$f":"'Мониторинг оценок'!C204&COUNTIF('Мониторинг оценок'!$C$4:C204,'Мониторинг оценок'!C204)","v":"0"}]
[null,202,{"$f":"'Мониторинг оценок'!C205&COUNTIF('Мониторинг оценок'!$C$4:C205,'Мониторинг оценок'!C205)","v":"0"}]
[null,203,{"$f":"'Мониторинг оценок'!C206&COUNTIF('Мониторинг оценок'!$C$4:C206,'Мониторинг оценок'!C206)","v":"0"}]
[null,204,{"$f":"'Мониторинг оценок'!C207&COUNTIF('Мониторинг оценок'!$C$4:C207,'Мониторинг оценок'!C207)","v":"0"}]
[null,205,{"$f":"'Мониторинг оценок'!C208&COUNTIF('Мониторинг оценок'!$C$4:C208,'Мониторинг оценок'!C208)","v":"0"}]
[null,206,{"$f":"'Мониторинг оценок'!C209&COUNTIF('Мониторинг оценок'!$C$4:C209,'Мониторинг оценок'!C209)","v":"0"}]
[null,207,{"$f":"'Мониторинг оценок'!C210&COUNTIF('Мониторинг оценок'!$C$4:C210,'Мониторинг оценок'!C210)","v":"0"}]
[null,208,{"$f":"'Мониторинг оценок'!C211&COUNTIF('Мониторинг оценок'!$C$4:C211,'Мониторинг оценок'!C211)","v":"0"}]
[null,209,{"$f":"'Мониторинг оценок'!C212&COUNTIF('Мониторинг оценок'!$C$4:C212,'Мониторинг оценок'!C212)","v":"0"}]
[null,210,{"$f":"'Мониторинг оценок'!C213&COUNTIF('Мониторинг оценок'!$C$4:C213,'Мониторинг оценок'!C213)","v":"0"}]
[null,211,{"$f":"'Мониторинг оценок'!C214&COUNTIF('Мониторинг оценок'!$C$4:C214,'Мониторинг оценок'!C214)","v":"0"}]
[null,212,{"$f":"'Мониторинг оценок'!C215&COUNTIF('Мониторинг оценок'!$C$4:C215,'Мониторинг оценок'!C215)","v":"0"}]
[null,213,{"$f":"'Мониторинг оценок'!C216&COUNTIF('Мониторинг оценок'!$C$4:C216,'Мониторинг оценок'!C216)","v":"0"}]
[null,214,{"$f":"'Мониторинг оценок'!C217&COUNTIF('Мониторинг оценок'!$C$4:C217,'Мониторинг оценок'!C217)","v":"0"}]
[null,215,{"$f":"'Мониторинг оценок'!C218&COUNTIF('Мониторинг оценок'!$C$4:C218,'Мониторинг оценок'!C218)","v":"0"}]
[null,216,{"$f":"'Мониторинг оценок'!C219&COUNTIF('Мониторинг оценок'!$C$4:C219,'Мониторинг оценок'!C219)","v":"0"}]
[null,217,{"$f":"'Мониторинг оценок'!C220&COUNTIF('Мониторинг оценок'!$C$4:C220,'Мониторинг оценок'!C220)","v":"0"}]
[null,218,{"$f":"'Мониторинг оценок'!C221&COUNTIF('Мониторинг оценок'!$C$4:C221,'Мониторинг оценок'!C221)","v":"0"}]
[null,219,{"$f":"'Мониторинг оценок'!C222&COUNTIF('Мониторинг оценок'!$C$4:C222,'Мониторинг оценок'!C222)","v":"0"}]
[null,220,{"$f":"'Мониторинг оценок'!C223&COUNTIF('Мониторинг оценок'!$C$4:C223,'Мониторинг оценок'!C223)","v":"0"}]
[null,221,{"$f":"'Мониторинг оценок'!C224&COUNTIF('Мониторинг оценок'!$C$4:C224,'Мониторинг оценок'!C224)","v":"0"}]
[null,222,{"$f":"'Мониторинг оценок'!C225&COUNTIF('Мониторинг оценок'!$C$4:C225,'Мониторинг оценок'!C225)","v":"0"}]
[null,223,{"$f":"'Мониторинг оценок'!C226&COUNTIF('Мониторинг оценок'!$C$4:C226,'Мониторинг оценок'!C226)","v":"0"}]
[null,224,{"$f":"'Мониторинг оценок'!C227&COUNTIF('Мониторинг оценок'!$C$4:C227,'Мониторинг оценок'!C227)","v":"0"}]
[null,225,{"$f":"'Мониторинг оценок'!C228&COUNTIF('Мониторинг оценок'!$C$4:C228,'Мониторинг оценок'!C228)","v":"0"}]
[null,226,{"$f":"'Мониторинг оценок'!C229&COUNTIF('Мониторинг оценок'!$C$4:C229,'Мониторинг оценок'!C229)","v":"0"}]
[null,227,{"$f":"'Мониторинг оценок'!C230&COUNTIF('Мониторинг оценок'!$C$4:C230,'Мониторинг оценок'!C230)","v":"0"}]
[null,228,{"$f":"'Мониторинг оценок'!C231&COUNTIF('Мониторинг оценок'!$C$4:C231,'Мониторинг оценок'!C231)","v":"0"}]
[null,229,{"$f":"'Мониторинг оценок'!C232&COUNTIF('Мониторинг оценок'!$C$4:C232,'Мониторинг оценок'!C232)","v":"0"}]
[null,230,{"$f":"'Мониторинг оценок'!C233&COUNTIF('Мониторинг оценок'!$C$4:C233,'Мониторинг оценок'!C233)","v":"0"}]
[null,231,{"$f":"'Мониторинг оценок'!C234&COUNTIF('Мониторинг оценок'!$C$4:C234,'Мониторинг оценок'!C234)","v":"0"}]
[null,232,{"$f":"'Мониторинг оценок'!C235&COUNTIF('Мониторинг оценок'!$C$4:C235,'Мониторинг оценок'!C235)","v":"0"}]
[null,233,{"$f":"'Мониторинг оценок'!C236&COUNTIF('Мониторинг оценок'!$C$4:C236,'Мониторинг оценок'!C236)","v":"0"}]
[null,234,{"$f":"'Мониторинг оценок'!C237&COUNTIF('Мониторинг оценок'!$C$4:C237,'Мониторинг оценок'!C237)","v":"0"}]
[null,235,{"$f":"'Мониторинг оценок'!C238&COUNTIF('Мониторинг оценок'!$C$4:C238,'Мониторинг оценок'!C238)","v":"0"}]
[null,236,{"$f":"'Мониторинг оценок'!C239&COUNTIF('Мониторинг оценок'!$C$4:C239,'Мониторинг оценок'!C239)","v":"0"}]
[null,237,{"$f":"'Мониторинг оценок'!C240&COUNTIF('Мониторинг оценок'!$C$4:C240,'Мониторинг оценок'!C240)","v":"0"}]
[null,238,{"$f":"'Мониторинг оценок'!C241&COUNTIF('Мониторинг оценок'!$C$4:C241,'Мониторинг оценок'!C241)","v":"0"}]
[null,239,{"$f":"'Мониторинг оценок'!C242&COUNTIF('Мониторинг оценок'!$C$4:C242,'Мониторинг оценок'!C242)","v":"0"}]
[null,240,{"$f":"'Мониторинг оценок'!C243&COUNTIF('Мониторинг оценок'!$C$4:C243,'Мониторинг оценок'!C243)","v":"0"}]
[null,241,{"$f":"'Мониторинг оценок'!C244&COUNTIF('Мониторинг оценок'!$C$4:C244,'Мониторинг оценок'!C244)","v":"0"}]
[null,242,{"$f":"'Мониторинг оценок'!C245&COUNTIF('Мониторинг оценок'!$C$4:C245,'Мониторинг оценок'!C245)","v":"0"}]
[null,243,{"$f":"'Мониторинг оценок'!C246&COUNTIF('Мониторинг оценок'!$C$4:C246,'Мониторинг оценок'!C246)","v":"0"}]
[null,244,{"$f":"'Мониторинг оценок'!C247&COUNTIF('Мониторинг оценок'!$C$4:C247,'Мониторинг оценок'!C247)","v":"0"}]
[null,245,{"$f":"'Мониторинг оценок'!C248&COUNTIF('Мониторинг оценок'!$C$4:C248,'Мониторинг оценок'!C248)","v":"0"}]
[null,246,{"$f":"'Мониторинг оценок'!C249&COUNTIF('Мониторинг оценок'!$C$4:C249,'Мониторинг оценок'!C249)","v":"0"}]
[null,247,{"$f":"'Мониторинг оценок'!C250&COUNTIF('Мониторинг оценок'!$C$4:C250,'Мониторинг оценок'!C250)","v":"0"}]
[null,248,{"$f":"'Мониторинг оценок'!C251&COUNTIF('Мониторинг оценок'!$C$4:C251,'Мониторинг оценок'!C251)","v":"0"}]
[null,249,{"$f":"'Мониторинг оценок'!C252&COUNTIF('Мониторинг оценок'!$C$4:C252,'Мониторинг оценок'!C252)","v":"0"}]
[null,250,{"$f":"'Мониторинг оценок'!C253&COUNTIF('Мониторинг оценок'!$C$4:C253,'Мониторинг оценок'!C253)","v":"0"}]
[null,251,{"$f":"'Мониторинг оценок'!C254&COUNTIF('Мониторинг оценок'!$C$4:C254,'Мониторинг оценок'!C254)","v":"0"}]
[null,252,{"$f":"'Мониторинг оценок'!C255&COUNTIF('Мониторинг оценок'!$C$4:C255,'Мониторинг оценок'!C255)","v":"0"}]
[null,253,{"$f":"'Мониторинг оценок'!C256&COUNTIF('Мониторинг оценок'!$C$4:C256,'Мониторинг оценок'!C256)","v":"0"}]
[null,254,{"$f":"'Мониторинг оценок'!C257&COUNTIF('Мониторинг оценок'!$C$4:C257,'Мониторинг оценок'!C257)","v":"0"}]
[null,255,{"$f":"'Мониторинг оценок'!C258&COUNTIF('Мониторинг оценок'!$C$4:C258,'Мониторинг оценок'!C258)","v":"0"}]
[null,256,{"$f":"'Мониторинг оценок'!C259&COUNTIF('Мониторинг оценок'!$C$4:C259,'Мониторинг оценок'!C259)","v":"0"}]
[null,257,{"$f":"'Мониторинг оценок'!C260&COUNTIF('Мониторинг оценок'!$C$4:C260,'Мониторинг оценок'!C260)","v":"0"}]
[null,258,{"$f":"'Мониторинг оценок'!C261&COUNTIF('Мониторинг оценок'!$C$4:C261,'Мониторинг оценок'!C261)","v":"0"}]
[null,259,{"$f":"'Мониторинг оценок'!C262&COUNTIF('Мониторинг оценок'!$C$4:C262,'Мониторинг оценок'!C262)","v":"0"}]
[null,260,{"$f":"'Мониторинг оценок'!C263&COUNTIF('Мониторинг оценок'!$C$4:C263,'Мониторинг оценок'!C263)","v":"0"}]
[null,261,{"$f":"'Мониторинг оценок'!C264&COUNTIF('Мониторинг оценок'!$C$4:C264,'Мониторинг оценок'!C264)","v":"0"}]
[null,262,{"$f":"'Мониторинг оценок'!C265&COUNTIF('Мониторинг оценок'!$C$4:C265,'Мониторинг оценок'!C265)","v":"0"}]
[null,263,{"$f":"'Мониторинг оценок'!C266&COUNTIF('Мониторинг оценок'!$C$4:C266,'Мониторинг оценок'!C266)","v":"0"}]
[null,264,{"$f":"'Мониторинг оценок'!C267&COUNTIF('Мониторинг оценок'!$C$4:C267,'Мониторинг оценок'!C267)","v":"0"}]
[null,265,{"$f":"'Мониторинг оценок'!C268&COUNTIF('Мониторинг оценок'!$C$4:C268,'Мониторинг оценок'!C268)","v":"0"}]
[null,266,{"$f":"'Мониторинг оценок'!C269&COUNTIF('Мониторинг оценок'!$C$4:C269,'Мониторинг оценок'!C269)","v":"0"}]
[null,267,{"$f":"'Мониторинг оценок'!C270&COUNTIF('Мониторинг оценок'!$C$4:C270,'Мониторинг оценок'!C270)","v":"0"}]
[null,268,{"$f":"'Мониторинг оценок'!C271&COUNTIF('Мониторинг оценок'!$C$4:C271,'Мониторинг оценок'!C271)","v":"0"}]
[null,269,{"$f":"'Мониторинг оценок'!C272&COUNTIF('Мониторинг оценок'!$C$4:C272,'Мониторинг оценок'!C272)","v":"0"}]
[null,270,{"$f":"'Мониторинг оценок'!C273&COUNTIF('Мониторинг оценок'!$C$4:C273,'Мониторинг оценок'!C273)","v":"0"}]
[null,271,{"$f":"'Мониторинг оценок'!C274&COUNTIF('Мониторинг оценок'!$C$4:C274,'Мониторинг оценок'!C274)","v":"0"}]
[null,272,{"$f":"'Мониторинг оценок'!C275&COUNTIF('Мониторинг оценок'!$C$4:C275,'Мониторинг оценок'!C275)","v":"0"}]
[null,273,{"$f":"'Мониторинг оценок'!C276&COUNTIF('Мониторинг оценок'!$C$4:C276,'Мониторинг оценок'!C276)","v":"0"}]
[null,274,{"$f":"'Мониторинг оценок'!C277&COUNTIF('Мониторинг оценок'!$C$4:C277,'Мониторинг оценок'!C277)","v":"0"}]
[null,275,{"$f":"'Мониторинг оценок'!C278&COUNTIF('Мониторинг оценок'!$C$4:C278,'Мониторинг оценок'!C278)","v":"0"}]
[null,276,{"$f":"'Мониторинг оценок'!C279&COUNTIF('Мониторинг оценок'!$C$4:C279,'Мониторинг оценок'!C279)","v":"0"}]
[null,277,{"$f":"'Мониторинг оценок'!C280&COUNTIF('Мониторинг оценок'!$C$4:C280,'Мониторинг оценок'!C280)","v":"0"}]
[null,278,{"$f":"'Мониторинг оценок'!C281&COUNTIF('Мониторинг оценок'!$C$4:C281,'Мониторинг оценок'!C281)","v":"0"}]
[null,279,{"$f":"'Мониторинг оценок'!C282&COUNTIF('Мониторинг оценок'!$C$4:C282,'Мониторинг оценок'!C282)","v":"0"}]
[null,280,{"$f":"'Мониторинг оценок'!C283&COUNTIF('Мониторинг оценок'!$C$4:C283,'Мониторинг оценок'!C283)","v":"0"}]
[null,281,{"$f":"'Мониторинг оценок'!C284&COUNTIF('Мониторинг оценок'!$C$4:C284,'Мониторинг оценок'!C284)","v":"0"}]
[null,282,{"$f":"'Мониторинг оценок'!C285&COUNTIF('Мониторинг оценок'!$C$4:C285,'Мониторинг оценок'!C285)","v":"0"}]
[null,283,{"$f":"'Мониторинг оценок'!C286&COUNTIF('Мониторинг оценок'!$C$4:C286,'Мониторинг оценок'!C286)","v":"0"}]
[null,284,{"$f":"'Мониторинг оценок'!C287&COUNTIF('Мониторинг оценок'!$C$4:C287,'Мониторинг оценок'!C287)","v":"0"}]
[null,285,{"$f":"'Мониторинг оценок'!C288&COUNTIF('Мониторинг оценок'!$C$4:C288,'Мониторинг оценок'!C288)","v":"0"}]
[null,286,{"$f":"'Мониторинг оценок'!C289&COUNTIF('Мониторинг оценок'!$C$4:C289,'Мониторинг оценок'!C289)","v":"0"}]
[null,287,{"$f":"'Мониторинг оценок'!C290&COUNTIF('Мониторинг оценок'!$C$4:C290,'Мониторинг оценок'!C290)","v":"0"}]
[null,288,{"$f":"'Мониторинг оценок'!C291&COUNTIF('Мониторинг оценок'!$C$4:C291,'Мониторинг оценок'!C291)","v":"0"}]
[null,289,{"$f":"'Мониторинг оценок'!C292&COUNTIF('Мониторинг оценок'!$C$4:C292,'Мониторинг оценок'!C292)","v":"0"}]
[null,290,{"$f":"'Мониторинг оценок'!C293&COUNTIF('Мониторинг оценок'!$C$4:C293,'Мониторинг оценок'!C293)","v":"0"}]
[null,291,{"$f":"'Мониторинг оценок'!C294&COUNTIF('Мониторинг оценок'!$C$4:C294,'Мониторинг оценок'!C294)","v":"0"}]
[null,292,{"$f":"'Мониторинг оценок'!C295&COUNTIF('Мониторинг оценок'!$C$4:C295,'Мониторинг оценок'!C295)","v":"0"}]
[null,293,{"$f":"'Мониторинг оценок'!C296&COUNTIF('Мониторинг оценок'!$C$4:C296,'Мониторинг оценок'!C296)","v":"0"}]
[null,294,{"$f":"'Мониторинг оценок'!C297&COUNTIF('Мониторинг оценок'!$C$4:C297,'Мониторинг оценок'!C297)","v":"0"}]
[null,295,{"$f":"'Мониторинг оценок'!C298&COUNTIF('Мониторинг оценок'!$C$4:C298,'Мониторинг оценок'!C298)","v":"0"}]
[null,296,{"$f":"'Мониторинг оценок'!C299&COUNTIF('Мониторинг оценок'!$C$4:C299,'Мониторинг оценок'!C299)","v":"0"}]
[null,297,{"$f":"'Мониторинг оценок'!C300&COUNTIF('Мониторинг оценок'!$C$4:C300,'Мониторинг оценок'!C300)","v":"0"}]
[null,298,{"$f":"'Мониторинг оценок'!C301&COUNTIF('Мониторинг оценок'!$C$4:C301,'Мониторинг оценок'!C301)","v":"0"}]
[null,299,{"$f":"'Мониторинг оценок'!C302&COUNTIF('Мониторинг оценок'!$C$4:C302,'Мониторинг оценок'!C302)","v":"0"}]
[null,300,{"$f":"'Мониторинг оценок'!C303&COUNTIF('Мониторинг оценок'!$C$4:C303,'Мониторинг оценок'!C303)","v":"0"}]
[null,301,{"$f":"'Мониторинг оценок'!C304&COUNTIF('Мониторинг оценок'!$C$4:C304,'Мониторинг оценок'!C304)","v":"0"}]
[null,302,{"$f":"'Мониторинг оценок'!C305&COUNTIF('Мониторинг оценок'!$C$4:C305,'Мониторинг оценок'!C305)","v":"0"}]
[null,303,{"$f":"'Мониторинг оценок'!C306&COUNTIF('Мониторинг оценок'!$C$4:C306,'Мониторинг оценок'!C306)","v":"0"}]
[null,304,{"$f":"'Мониторинг оценок'!C307&COUNTIF('Мониторинг оценок'!$C$4:C307,'Мониторинг оценок'!C307)","v":"0"}]
[null,305,{"$f":"'Мониторинг оценок'!C308&COUNTIF('Мониторинг оценок'!$C$4:C308,'Мониторинг оценок'!C308)","v":"0"}]
[null,306,{"$f":"'Мониторинг оценок'!C309&COUNTIF('Мониторинг оценок'!$C$4:C309,'Мониторинг оценок'!C309)","v":"0"}]
[null,307,{"$f":"'Мониторинг оценок'!C310&COUNTIF('Мониторинг оценок'!$C$4:C310,'Мониторинг оценок'!C310)","v":"0"}]
[null,308,{"$f":"'Мониторинг оценок'!C311&COUNTIF('Мониторинг оценок'!$C$4:C311,'Мониторинг оценок'!C311)","v":"0"}]
[null,309,{"$f":"'Мониторинг оценок'!C312&COUNTIF('Мониторинг оценок'!$C$4:C312,'Мониторинг оценок'!C312)","v":"0"}]
[null,310,{"$f":"'Мониторинг оценок'!C313&COUNTIF('Мониторинг оценок'!$C$4:C313,'Мониторинг оценок'!C313)","v":"0"}]
[null,311,{"$f":"'Мониторинг оценок'!C314&COUNTIF('Мониторинг оценок'!$C$4:C314,'Мониторинг оценок'!C314)","v":"0"}]
[null,312,{"$f":"'Мониторинг оценок'!C315&COUNTIF('Мониторинг оценок'!$C$4:C315,'Мониторинг оценок'!C315)","v":"0"}]
[null,313,{"$f":"'Мониторинг оценок'!C316&COUNTIF('Мониторинг оценок'!$C$4:C316,'Мониторинг оценок'!C316)","v":"0"}]
[null,314,{"$f":"'Мониторинг оценок'!C317&COUNTIF('Мониторинг оценок'!$C$4:C317,'Мониторинг оценок'!C317)","v":"0"}]
[null,315,{"$f":"'Мониторинг оценок'!C318&COUNTIF('Мониторинг оценок'!$C$4:C318,'Мониторинг оценок'!C318)","v":"0"}]
[null,316,{"$f":"'Мониторинг оценок'!C319&COUNTIF('Мониторинг оценок'!$C$4:C319,'Мониторинг оценок'!C319)","v":"0"}]
[null,317,{"$f":"'Мониторинг оценок'!C320&COUNTIF('Мониторинг оценок'!$C$4:C320,'Мониторинг оценок'!C320)","v":"0"}]
[null,318,{"$f":"'Мониторинг оценок'!C321&COUNTIF('Мониторинг оценок'!$C$4:C321,'Мониторинг оценок'!C321)","v":"0"}]
[null,319,{"$f":"'Мониторинг оценок'!C322&COUNTIF('Мониторинг оценок'!$C$4:C322,'Мониторинг оценок'!C322)","v":"0"}]
[null,320,{"$f":"'Мониторинг оценок'!C323&COUNTIF('Мониторинг оценок'!$C$4:C323,'Мониторинг оценок'!C323)","v":"0"}]
[null,321,{"$f":"'Мониторинг оценок'!C324&COUNTIF('Мониторинг оценок'!$C$4:C324,'Мониторинг оценок'!C324)","v":"0"}]
[null,322,{"$f":"'Мониторинг оценок'!C325&COUNTIF('Мониторинг оценок'!$C$4:C325,'Мониторинг оценок'!C325)","v":"0"}]
[null,323,{"$f":"'Мониторинг оценок'!C326&COUNTIF('Мониторинг оценок'!$C$4:C326,'Мониторинг оценок'!C326)","v":"0"}]
[null,324,{"$f":"'Мониторинг оценок'!C327&COUNTIF('Мониторинг оценок'!$C$4:C327,'Мониторинг оценок'!C327)","v":"0"}]
[null,325,{"$f":"'Мониторинг оценок'!C328&COUNTIF('Мониторинг оценок'!$C$4:C328,'Мониторинг оценок'!C328)","v":"0"}]
[null,326,{"$f":"'Мониторинг оценок'!C329&COUNTIF('Мониторинг оценок'!$C$4:C329,'Мониторинг оценок'!C329)","v":"0"}]
[null,327,{"$f":"'Мониторинг оценок'!C330&COUNTIF('Мониторинг оценок'!$C$4:C330,'Мониторинг оценок'!C330)","v":"0"}]
[null,328,{"$f":"'Мониторинг оценок'!C331&COUNTIF('Мониторинг оценок'!$C$4:C331,'Мониторинг оценок'!C331)","v":"0"}]
[null,329,{"$f":"'Мониторинг оценок'!C332&COUNTIF('Мониторинг оценок'!$C$4:C332,'Мониторинг оценок'!C332)","v":"0"}]
[null,330,{"$f":"'Мониторинг оценок'!C333&COUNTIF('Мониторинг оценок'!$C$4:C333,'Мониторинг оценок'!C333)","v":"0"}]
[null,331,{"$f":"'Мониторинг оценок'!C334&COUNTIF('Мониторинг оценок'!$C$4:C334,'Мониторинг оценок'!C334)","v":"0"}]
[null,332,{"$f":"'Мониторинг оценок'!C335&COUNTIF('Мониторинг оценок'!$C$4:C335,'Мониторинг оценок'!C335)","v":"0"}]
[null,333,{"$f":"'Мониторинг оценок'!C336&COUNTIF('Мониторинг оценок'!$C$4:C336,'Мониторинг оценок'!C336)","v":"0"}]
[null,334,{"$f":"'Мониторинг оценок'!C337&COUNTIF('Мониторинг оценок'!$C$4:C337,'Мониторинг оценок'!C337)","v":"0"}]
[null,335,{"$f":"'Мониторинг оценок'!C338&COUNTIF('Мониторинг оценок'!$C$4:C338,'Мониторинг оценок'!C338)","v":"0"}]
[null,336,{"$f":"'Мониторинг оценок'!C339&COUNTIF('Мониторинг оценок'!$C$4:C339,'Мониторинг оценок'!C339)","v":"0"}]
[null,337,{"$f":"'Мониторинг оценок'!C340&COUNTIF('Мониторинг оценок'!$C$4:C340,'Мониторинг оценок'!C340)","v":"0"}]
[null,338,{"$f":"'Мониторинг оценок'!C341&COUNTIF('Мониторинг оценок'!$C$4:C341,'Мониторинг оценок'!C341)","v":"0"}]
[null,339,{"$f":"'Мониторинг оценок'!C342&COUNTIF('Мониторинг оценок'!$C$4:C342,'Мониторинг оценок'!C342)","v":"0"}]
[null,340,{"$f":"'Мониторинг оценок'!C343&COUNTIF('Мониторинг оценок'!$C$4:C343,'Мониторинг оценок'!C343)","v":"0"}]
[null,341,{"$f":"'Мониторинг оценок'!C344&COUNTIF('Мониторинг оценок'!$C$4:C344,'Мониторинг оценок'!C344)","v":"0"}]
[null,342,{"$f":"'Мониторинг оценок'!C345&COUNTIF('Мониторинг оценок'!$C$4:C345,'Мониторинг оценок'!C345)","v":"0"}]
[null,343,{"$f":"'Мониторинг оценок'!C346&COUNTIF('Мониторинг оценок'!$C$4:C346,'Мониторинг оценок'!C346)","v":"0"}]
[null,344,{"$f":"'Мониторинг оценок'!C347&COUNTIF('Мониторинг оценок'!$C$4:C347,'Мониторинг оценок'!C347)","v":"0"}]
[null,345,{"$f":"'Мониторинг оценок'!C348&COUNTIF('Мониторинг оценок'!$C$4:C348,'Мониторинг оценок'!C348)","v":"0"}]
[null,346,{"$f":"'Мониторинг оценок'!C349&COUNTIF('Мониторинг оценок'!$C$4:C349,'Мониторинг оценок'!C349)","v":"0"}]
[null,347,{"$f":"'Мониторинг оценок'!C350&COUNTIF('Мониторинг оценок'!$C$4:C350,'Мониторинг оценок'!C350)","v":"0"}]
[null,348,{"$f":"'Мониторинг оценок'!C351&COUNTIF('Мониторинг оценок'!$C$4:C351,'Мониторинг оценок'!C351)","v":"0"}]
[null,349,{"$f":"'Мониторинг оценок'!C352&COUNTIF('Мониторинг оценок'!$C$4:C352,'Мониторинг оценок'!C352)","v":"0"}]
[null,350,{"$f":"'Мониторинг оценок'!C353&COUNTIF('Мониторинг оценок'!$C$4:C353,'Мониторинг оценок'!C353)","v":"0"}]
[null,351,{"$f":"'Мониторинг оценок'!C354&COUNTIF('Мониторинг оценок'!$C$4:C354,'Мониторинг оценок'!C354)","v":"0"}]
[null,352,{"$f":"'Мониторинг оценок'!C355&COUNTIF('Мониторинг оценок'!$C$4:C355,'Мониторинг оценок'!C355)","v":"0"}]
[null,353,{"$f":"'Мониторинг оценок'!C356&COUNTIF('Мониторинг оценок'!$C$4:C356,'Мониторинг оценок'!C356)","v":"0"}]
[null,354,{"$f":"'Мониторинг оценок'!C357&COUNTIF('Мониторинг оценок'!$C$4:C357,'Мониторинг оценок'!C357)","v":"0"}]
[null,355,{"$f":"'Мониторинг оценок'!C358&COUNTIF('Мониторинг оценок'!$C$4:C358,'Мониторинг оценок'!C358)","v":"0"}]
[null,356,{"$f":"'Мониторинг оценок'!C359&COUNTIF('Мониторинг оценок'!$C$4:C359,'Мониторинг оценок'!C359)","v":"0"}]
[null,357,{"$f":"'Мониторинг оценок'!C360&COUNTIF('Мониторинг оценок'!$C$4:C360,'Мониторинг оценок'!C360)","v":"0"}]
[null,358,{"$f":"'Мониторинг оценок'!C361&COUNTIF('Мониторинг оценок'!$C$4:C361,'Мониторинг оценок'!C361)","v":"0"}]
[null,359,{"$f":"'Мониторинг оценок'!C362&COUNTIF('Мониторинг оценок'!$C$4:C362,'Мониторинг оценок'!C362)","v":"0"}]
[null,360,{"$f":"'Мониторинг оценок'!C363&COUNTIF('Мониторинг оценок'!$C$4:C363,'Мониторинг оценок'!C363)","v":"0"}]
[null,361,{"$f":"'Мониторинг оценок'!C364&COUNTIF('Мониторинг оценок'!$C$4:C364,'Мониторинг оценок'!C364)","v":"0"}]
[null,362,{"$f":"'Мониторинг оценок'!C365&COUNTIF('Мониторинг оценок'!$C$4:C365,'Мониторинг оценок'!C365)","v":"0"}]
[null,363,{"$f":"'Мониторинг оценок'!C366&COUNTIF('Мониторинг оценок'!$C$4:C366,'Мониторинг оценок'!C366)","v":"0"}]
[null,364,{"$f":"'Мониторинг оценок'!C367&COUNTIF('Мониторинг оценок'!$C$4:C367,'Мониторинг оценок'!C367)","v":"0"}]
[null,365,{"$f":"'Мониторинг оценок'!C368&COUNTIF('Мониторинг оценок'!$C$4:C368,'Мониторинг оценок'!C368)","v":"0"}]
[null,366,{"$f":"'Мониторинг оценок'!C369&COUNTIF('Мониторинг оценок'!$C$4:C369,'Мониторинг оценок'!C369)","v":"0"}]
[null,367,{"$f":"'Мониторинг оценок'!C370&COUNTIF('Мониторинг оценок'!$C$4:C370,'Мониторинг оценок'!C370)","v":"0"}]
[null,368,{"$f":"'Мониторинг оценок'!C371&COUNTIF('Мониторинг оценок'!$C$4:C371,'Мониторинг оценок'!C371)","v":"0"}]
[null,369,{"$f":"'Мониторинг оценок'!C372&COUNTIF('Мониторинг оценок'!$C$4:C372,'Мониторинг оценок'!C372)","v":"0"}]
[null,370,{"$f":"'Мониторинг оценок'!C373&COUNTIF('Мониторинг оценок'!$C$4:C373,'Мониторинг оценок'!C373)","v":"0"}]
[null,371,{"$f":"'Мониторинг оценок'!C374&COUNTIF('Мониторинг оценок'!$C$4:C374,'Мониторинг оценок'!C374)","v":"0"}]
[null,372,{"$f":"'Мониторинг оценок'!C375&COUNTIF('Мониторинг оценок'!$C$4:C375,'Мониторинг оценок'!C375)","v":"0"}]
[null,373,{"$f":"'Мониторинг оценок'!C376&COUNTIF('Мониторинг оценок'!$C$4:C376,'Мониторинг оценок'!C376)","v":"0"}]
[null,374,{"$f":"'Мониторинг оценок'!C377&COUNTIF('Мониторинг оценок'!$C$4:C377,'Мониторинг оценок'!C377)","v":"0"}]
[null,375,{"$f":"'Мониторинг оценок'!C378&COUNTIF('Мониторинг оценок'!$C$4:C378,'Мониторинг оценок'!C378)","v":"0"}]
[null,376,{"$f":"'Мониторинг оценок'!C379&COUNTIF('Мониторинг оценок'!$C$4:C379,'Мониторинг оценок'!C379)","v":"0"}]
[null,377,{"$f":"'Мониторинг оценок'!C380&COUNTIF('Мониторинг оценок'!$C$4:C380,'Мониторинг оценок'!C380)","v":"0"}]
[null,378,{"$f":"'Мониторинг оценок'!C381&COUNTIF('Мониторинг оценок'!$C$4:C381,'Мониторинг оценок'!C381)","v":"0"}]
[null,379,{"$f":"'Мониторинг оценок'!C382&COUNTIF('Мониторинг оценок'!$C$4:C382,'Мониторинг оценок'!C382)","v":"0"}]
[null,380,{"$f":"'Мониторинг оценок'!C383&COUNTIF('Мониторинг оценок'!$C$4:C383,'Мониторинг оценок'!C383)","v":"0"}]
[null,381,{"$f":"'Мониторинг оценок'!C384&COUNTIF('Мониторинг оценок'!$C$4:C384,'Мониторинг оценок'!C384)","v":"0"}]
[null,382,{"$f":"'Мониторинг оценок'!C385&COUNTIF('Мониторинг оценок'!$C$4:C385,'Мониторинг оценок'!C385)","v":"0"}]
[null,383,{"$f":"'Мониторинг оценок'!C386&COUNTIF('Мониторинг оценок'!$C$4:C386,'Мониторинг оценок'!C386)","v":"0"}]
[null,384,{"$f":"'Мониторинг оценок'!C387&COUNTIF('Мониторинг оценок'!$C$4:C387,'Мониторинг оценок'!C387)","v":"0"}]
[null,385,{"$f":"'Мониторинг оценок'!C388&COUNTIF('Мониторинг оценок'!$C$4:C388,'Мониторинг оценок'!C388)","v":"0"}]
[null,386,{"$f":"'Мониторинг оценок'!C389&COUNTIF('Мониторинг оценок'!$C$4:C389,'Мониторинг оценок'!C389)","v":"0"}]
[null,387,{"$f":"'Мониторинг оценок'!C390&COUNTIF('Мониторинг оценок'!$C$4:C390,'Мониторинг оценок'!C390)","v":"0"}]
[null,388,{"$f":"'Мониторинг оценок'!C391&COUNTIF('Мониторинг оценок'!$C$4:C391,'Мониторинг оценок'!C391)","v":"0"}]
[null,389,{"$f":"'Мониторинг оценок'!C392&COUNTIF('Мониторинг оценок'!$C$4:C392,'Мониторинг оценок'!C392)","v":"0"}]
[null,390,{"$f":"'Мониторинг оценок'!C393&COUNTIF('Мониторинг оценок'!$C$4:C393,'Мониторинг оценок'!C393)","v":"0"}]
[null,391,{"$f":"'Мониторинг оценок'!C394&COUNTIF('Мониторинг оценок'!$C$4:C394,'Мониторинг оценок'!C394)","v":"0"}]
[null,392,{"$f":"'Мониторинг оценок'!C395&COUNTIF('Мониторинг оценок'!$C$4:C395,'Мониторинг оценок'!C395)","v":"0"}]
[null,393,{"$f":"'Мониторинг оценок'!C396&COUNTIF('Мониторинг оценок'!$C$4:C396,'Мониторинг оценок'!C396)","v":"0"}]
[null,394,{"$f":"'Мониторинг оценок'!C397&COUNTIF('Мониторинг оценок'!$C$4:C397,'Мониторинг оценок'!C397)","v":"0"}]
[null,395,{"$f":"'Мониторинг оценок'!C398&COUNTIF('Мониторинг оценок'!$C$4:C398,'Мониторинг оценок'!C398)","v":"0"}]
[null,396,{"$f":"'Мониторинг оценок'!C399&COUNTIF('Мониторинг оценок'!$C$4:C399,'Мониторинг оценок'!C399)","v":"0"}]
[null,397,{"$f":"'Мониторинг оценок'!C400&COUNTIF('Мониторинг оценок'!$C$4:C400,'Мониторинг оценок'!C400)","v":"0"}]
[null,398,{"$f":"'Мониторинг оценок'!C401&COUNTIF('Мониторинг оценок'!$C$4:C401,'Мониторинг оценок'!C401)","v":"0"}]
[null,399,{"$f":"'Мониторинг оценок'!C402&COUNTIF('Мониторинг оценок'!$C$4:C402,'Мониторинг оценок'!C402)","v":"0"}]
[null,400,{"$f":"'Мониторинг оценок'!C403&COUNTIF('Мониторинг оценок'!$C$4:C403,'Мониторинг оценок'!C403)","v":"0"}]
[null,401,{"$f":"'Мониторинг оценок'!C404&COUNTIF('Мониторинг оценок'!$C$4:C404,'Мониторинг оценок'!C404)","v":"0"}]
[null,402,{"$f":"'Мониторинг оценок'!C405&COUNTIF('Мониторинг оценок'!$C$4:C405,'Мониторинг оценок'!C405)","v":"0"}]
[null,403,{"$f":"'Мониторинг оценок'!C406&COUNTIF('Мониторинг оценок'!$C$4:C406,'Мониторинг оценок'!C406)","v":"0"}]
[null,404,{"$f":"'Мониторинг оценок'!C407&COUNTIF('Мониторинг оценок'!$C$4:C407,'Мониторинг оценок'!C407)","v":"0"}]
[null,405,{"$f":"'Мониторинг оценок'!C408&COUNTIF('Мониторинг оценок'!$C$4:C408,'Мониторинг оценок'!C408)","v":"0"}]
[null,406,{"$f":"'Мониторинг оценок'!C409&COUNTIF('Мониторинг оценок'!$C$4:C409,'Мониторинг оценок'!C409)","v":"0"}]
[null,407,{"$f":"'Мониторинг оценок'!C410&COUNTIF('Мониторинг оценок'!$C$4:C410,'Мониторинг оценок'!C410)","v":"0"}]
[null,408,{"$f":"'Мониторинг оценок'!C411&COUNTIF('Мониторинг оценок'!$C$4:C411,'Мониторинг оценок'!C411)","v":"0"}]
[null,409,{"$f":"'Мониторинг оценок'!C412&COUNTIF('Мониторинг оценок'!$C$4:C412,'Мониторинг оценок'!C412)","v":"0"}]
[null,410,{"$f":"'Мониторинг оценок'!C413&COUNTIF('Мониторинг оценок'!$C$4:C413,'Мониторинг оценок'!C413)","v":"0"}]
[null,411,{"$f":"'Мониторинг оценок'!C414&COUNTIF('Мониторинг оценок'!$C$4:C414,'Мониторинг оценок'!C414)","v":"0"}]
[null,412,{"$f":"'Мониторинг оценок'!C415&COUNTIF('Мониторинг оценок'!$C$4:C415,'Мониторинг оценок'!C415)","v":"0"}]
[null,413,{"$f":"'Мониторинг оценок'!C416&COUNTIF('Мониторинг оценок'!$C$4:C416,'Мониторинг оценок'!C416)","v":"0"}]
[null,414,{"$f":"'Мониторинг оценок'!C417&COUNTIF('Мониторинг оценок'!$C$4:C417,'Мониторинг оценок'!C417)","v":"0"}]
[null,415,{"$f":"'Мониторинг оценок'!C418&COUNTIF('Мониторинг оценок'!$C$4:C418,'Мониторинг оценок'!C418)","v":"0"}]
[null,416,{"$f":"'Мониторинг оценок'!C419&COUNTIF('Мониторинг оценок'!$C$4:C419,'Мониторинг оценок'!C419)","v":"0"}]
[null,417,{"$f":"'Мониторинг оценок'!C420&COUNTIF('Мониторинг оценок'!$C$4:C420,'Мониторинг оценок'!C420)","v":"0"}]
[null,418,{"$f":"'Мониторинг оценок'!C421&COUNTIF('Мониторинг оценок'!$C$4:C421,'Мониторинг оценок'!C421)","v":"0"}]
[null,419,{"$f":"'Мониторинг оценок'!C422&COUNTIF('Мониторинг оценок'!$C$4:C422,'Мониторинг оценок'!C422)","v":"0"}]
[null,420,{"$f":"'Мониторинг оценок'!C423&COUNTIF('Мониторинг оценок'!$C$4:C423,'Мониторинг оценок'!C423)","v":"0"}]
[null,421,{"$f":"'Мониторинг оценок'!C424&COUNTIF('Мониторинг оценок'!$C$4:C424,'Мониторинг оценок'!C424)","v":"0"}]
[null,422,{"$f":"'Мониторинг оценок'!C425&COUNTIF('Мониторинг оценок'!$C$4:C425,'Мониторинг оценок'!C425)","v":"0"}]
[null,423,{"$f":"'Мониторинг оценок'!C426&COUNTIF('Мониторинг оценок'!$C$4:C426,'Мониторинг оценок'!C426)","v":"0"}]
[null,424,{"$f":"'Мониторинг оценок'!C427&COUNTIF('Мониторинг оценок'!$C$4:C427,'Мониторинг оценок'!C427)","v":"0"}]
[null,425,{"$f":"'Мониторинг оценок'!C428&COUNTIF('Мониторинг оценок'!$C$4:C428,'Мониторинг оценок'!C428)","v":"0"}]
[null,426,{"$f":"'Мониторинг оценок'!C429&COUNTIF('Мониторинг оценок'!$C$4:C429,'Мониторинг оценок'!C429)","v":"0"}]
[null,427,{"$f":"'Мониторинг оценок'!C430&COUNTIF('Мониторинг оценок'!$C$4:C430,'Мониторинг оценок'!C430)","v":"0"}]
[null,428,{"$f":"'Мониторинг оценок'!C431&COUNTIF('Мониторинг оценок'!$C$4:C431,'Мониторинг оценок'!C431)","v":"0"}]
[null,429,{"$f":"'Мониторинг оценок'!C432&COUNTIF('Мониторинг оценок'!$C$4:C432,'Мониторинг оценок'!C432)","v":"0"}]
[null,430,{"$f":"'Мониторинг оценок'!C433&COUNTIF('Мониторинг оценок'!$C$4:C433,'Мониторинг оценок'!C433)","v":"0"}]
[null,431,{"$f":"'Мониторинг оценок'!C434&COUNTIF('Мониторинг оценок'!$C$4:C434,'Мониторинг оценок'!C434)","v":"0"}]
[null,432,{"$f":"'Мониторинг оценок'!C435&COUNTIF('Мониторинг оценок'!$C$4:C435,'Мониторинг оценок'!C435)","v":"0"}]
[null,433,{"$f":"'Мониторинг оценок'!C436&COUNTIF('Мониторинг оценок'!$C$4:C436,'Мониторинг оценок'!C436)","v":"0"}]
[null,434,{"$f":"'Мониторинг оценок'!C437&COUNTIF('Мониторинг оценок'!$C$4:C437,'Мониторинг оценок'!C437)","v":"0"}]
[null,435,{"$f":"'Мониторинг оценок'!C438&COUNTIF('Мониторинг оценок'!$C$4:C438,'Мониторинг оценок'!C438)","v":"0"}]
[null,436,{"$f":"'Мониторинг оценок'!C439&COUNTIF('Мониторинг оценок'!$C$4:C439,'Мониторинг оценок'!C439)","v":"0"}]
[null,437,{"$f":"'Мониторинг оценок'!C440&COUNTIF('Мониторинг оценок'!$C$4:C440,'Мониторинг оценок'!C440)","v":"0"}]
[null,438,{"$f":"'Мониторинг оценок'!C441&COUNTIF('Мониторинг оценок'!$C$4:C441,'Мониторинг оценок'!C441)","v":"0"}]
[null,439,{"$f":"'Мониторинг оценок'!C442&COUNTIF('Мониторинг оценок'!$C$4:C442,'Мониторинг оценок'!C442)","v":"0"}]
[null,440,{"$f":"'Мониторинг оценок'!C443&COUNTIF('Мониторинг оценок'!$C$4:C443,'Мониторинг оценок'!C443)","v":"0"}]
[null,441,{"$f":"'Мониторинг оценок'!C444&COUNTIF('Мониторинг оценок'!$C$4:C444,'Мониторинг оценок'!C444)","v":"0"}]
[null,442,{"$f":"'Мониторинг оценок'!C445&COUNTIF('Мониторинг оценок'!$C$4:C445,'Мониторинг оценок'!C445)","v":"0"}]
[null,443,{"$f":"'Мониторинг оценок'!C446&COUNTIF('Мониторинг оценок'!$C$4:C446,'Мониторинг оценок'!C446)","v":"0"}]
[null,444,{"$f":"'Мониторинг оценок'!C447&COUNTIF('Мониторинг оценок'!$C$4:C447,'Мониторинг оценок'!C447)","v":"0"}]
[null,445,{"$f":"'Мониторинг оценок'!C448&COUNTIF('Мониторинг оценок'!$C$4:C448,'Мониторинг оценок'!C448)","v":"0"}]
[null,446,{"$f":"'Мониторинг оценок'!C449&COUNTIF('Мониторинг оценок'!$C$4:C449,'Мониторинг оценок'!C449)","v":"0"}]
[null,447,{"$f":"'Мониторинг оценок'!C450&COUNTIF('Мониторинг оценок'!$C$4:C450,'Мониторинг оценок'!C450)","v":"0"}]
[null,448,{"$f":"'Мониторинг оценок'!C451&COUNTIF('Мониторинг оценок'!$C$4:C451,'Мониторинг оценок'!C451)","v":"0"}]
[null,449,{"$f":"'Мониторинг оценок'!C452&COUNTIF('Мониторинг оценок'!$C$4:C452,'Мониторинг оценок'!C452)","v":"0"}]
[null,450,{"$f":"'Мониторинг оценок'!C453&COUNTIF('Мониторинг оценок'!$C$4:C453,'Мониторинг оценок'!C453)","v":"0"}]
[null,451,{"$f":"'Мониторинг оценок'!C454&COUNTIF('Мониторинг оценок'!$C$4:C454,'Мониторинг оценок'!C454)","v":"0"}]
[null,452,{"$f":"'Мониторинг оценок'!C455&COUNTIF('Мониторинг оценок'!$C$4:C455,'Мониторинг оценок'!C455)","v":"0"}]
[null,453,{"$f":"'Мониторинг оценок'!C456&COUNTIF('Мониторинг оценок'!$C$4:C456,'Мониторинг оценок'!C456)","v":"0"}]
[null,454,{"$f":"'Мониторинг оценок'!C457&COUNTIF('Мониторинг оценок'!$C$4:C457,'Мониторинг оценок'!C457)","v":"0"}]
[null,455,{"$f":"'Мониторинг оценок'!C458&COUNTIF('Мониторинг оценок'!$C$4:C458,'Мониторинг оценок'!C458)","v":"0"}]
[null,456,{"$f":"'Мониторинг оценок'!C459&COUNTIF('Мониторинг оценок'!$C$4:C459,'Мониторинг оценок'!C459)","v":"0"}]
[null,457,{"$f":"'Мониторинг оценок'!C460&COUNTIF('Мониторинг оценок'!$C$4:C460,'Мониторинг оценок'!C460)","v":"0"}]
[null,458,{"$f":"'Мониторинг оценок'!C461&COUNTIF('Мониторинг оценок'!$C$4:C461,'Мониторинг оценок'!C461)","v":"0"}]
[null,459,{"$f":"'Мониторинг оценок'!C462&COUNTIF('Мониторинг оценок'!$C$4:C462,'Мониторинг оценок'!C462)","v":"0"}]
[null,460,{"$f":"'Мониторинг оценок'!C463&COUNTIF('Мониторинг оценок'!$C$4:C463,'Мониторинг оценок'!C463)","v":"0"}]
[null,461,{"$f":"'Мониторинг оценок'!C464&COUNTIF('Мониторинг оценок'!$C$4:C464,'Мониторинг оценок'!C464)","v":"0"}]
[null,462,{"$f":"'Мониторинг оценок'!C465&COUNTIF('Мониторинг оценок'!$C$4:C465,'Мониторинг оценок'!C465)","v":"0"}]
[null,463,{"$f":"'Мониторинг оценок'!C466&COUNTIF('Мониторинг оценок'!$C$4:C466,'Мониторинг оценок'!C466)","v":"0"}]
[null,464,{"$f":"'Мониторинг оценок'!C467&COUNTIF('Мониторинг оценок'!$C$4:C467,'Мониторинг оценок'!C467)","v":"0"}]
[null,465,{"$f":"'Мониторинг оценок'!C468&COUNTIF('Мониторинг оценок'!$C$4:C468,'Мониторинг оценок'!C468)","v":"0"}]
[null,466,{"$f":"'Мониторинг оценок'!C469&COUNTIF('Мониторинг оценок'!$C$4:C469,'Мониторинг оценок'!C469)","v":"0"}]
[null,467,{"$f":"'Мониторинг оценок'!C470&COUNTIF('Мониторинг оценок'!$C$4:C470,'Мониторинг оценок'!C470)","v":"0"}]
[null,468,{"$f":"'Мониторинг оценок'!C471&COUNTIF('Мониторинг оценок'!$C$4:C471,'Мониторинг оценок'!C471)","v":"0"}]
[null,469,{"$f":"'Мониторинг оценок'!C472&COUNTIF('Мониторинг оценок'!$C$4:C472,'Мониторинг оценок'!C472)","v":"0"}]
[null,470,{"$f":"'Мониторинг оценок'!C473&COUNTIF('Мониторинг оценок'!$C$4:C473,'Мониторинг оценок'!C473)","v":"0"}]
[null,471,{"$f":"'Мониторинг оценок'!C474&COUNTIF('Мониторинг оценок'!$C$4:C474,'Мониторинг оценок'!C474)","v":"0"}]
[null,472,{"$f":"'Мониторинг оценок'!C475&COUNTIF('Мониторинг оценок'!$C$4:C475,'Мониторинг оценок'!C475)","v":"0"}]
[null,473,{"$f":"'Мониторинг оценок'!C476&COUNTIF('Мониторинг оценок'!$C$4:C476,'Мониторинг оценок'!C476)","v":"0"}]
[null,474,{"$f":"'Мониторинг оценок'!C477&COUNTIF('Мониторинг оценок'!$C$4:C477,'Мониторинг оценок'!C477)","v":"0"}]
[null,475,{"$f":"'Мониторинг оценок'!C478&COUNTIF('Мониторинг оценок'!$C$4:C478,'Мониторинг оценок'!C478)","v":"0"}]
[null,476,{"$f":"'Мониторинг оценок'!C479&COUNTIF('Мониторинг оценок'!$C$4:C479,'Мониторинг оценок'!C479)","v":"0"}]
[null,477,{"$f":"'Мониторинг оценок'!C480&COUNTIF('Мониторинг оценок'!$C$4:C480,'Мониторинг оценок'!C480)","v":"0"}]
[null,478,{"$f":"'Мониторинг оценок'!C481&COUNTIF('Мониторинг оценок'!$C$4:C481,'Мониторинг оценок'!C481)","v":"0"}]
[null,479,{"$f":"'Мониторинг оценок'!C482&COUNTIF('Мониторинг оценок'!$C$4:C482,'Мониторинг оценок'!C482)","v":"0"}]
[null,480,{"$f":"'Мониторинг оценок'!C483&COUNTIF('Мониторинг оценок'!$C$4:C483,'Мониторинг оценок'!C483)","v":"0"}]
[null,481,{"$f":"'Мониторинг оценок'!C484&COUNTIF('Мониторинг оценок'!$C$4:C484,'Мониторинг оценок'!C484)","v":"0"}]
[null,482,{"$f":"'Мониторинг оценок'!C485&COUNTIF('Мониторинг оценок'!$C$4:C485,'Мониторинг оценок'!C485)","v":"0"}]
[null,483,{"$f":"'Мониторинг оценок'!C486&COUNTIF('Мониторинг оценок'!$C$4:C486,'Мониторинг оценок'!C486)","v":"0"}]
[null,484,{"$f":"'Мониторинг оценок'!C487&COUNTIF('Мониторинг оценок'!$C$4:C487,'Мониторинг оценок'!C487)","v":"0"}]
[null,485,{"$f":"'Мониторинг оценок'!C488&COUNTIF('Мониторинг оценок'!$C$4:C488,'Мониторинг оценок'!C488)","v":"0"}]
[null,486,{"$f":"'Мониторинг оценок'!C489&COUNTIF('Мониторинг оценок'!$C$4:C489,'Мониторинг оценок'!C489)","v":"0"}]
[null,487,{"$f":"'Мониторинг оценок'!C490&COUNTIF('Мониторинг оценок'!$C$4:C490,'Мониторинг оценок'!C490)","v":"0"}]
[null,488,{"$f":"'Мониторинг оценок'!C491&COUNTIF('Мониторинг оценок'!$C$4:C491,'Мониторинг оценок'!C491)","v":"0"}]
[null,489,{"$f":"'Мониторинг оценок'!C492&COUNTIF('Мониторинг оценок'!$C$4:C492,'Мониторинг оценок'!C492)","v":"0"}]
[null,490,{"$f":"'Мониторинг оценок'!C493&COUNTIF('Мониторинг оценок'!$C$4:C493,'Мониторинг оценок'!C493)","v":"0"}]
[null,491,{"$f":"'Мониторинг оценок'!C494&COUNTIF('Мониторинг оценок'!$C$4:C494,'Мониторинг оценок'!C494)","v":"0"}]
[null,492,{"$f":"'Мониторинг оценок'!C495&COUNTIF('Мониторинг оценок'!$C$4:C495,'Мониторинг оценок'!C495)","v":"0"}]
[null,493,{"$f":"'Мониторинг оценок'!C496&COUNTIF('Мониторинг оценок'!$C$4:C496,'Мониторинг оценок'!C496)","v":"0"}]
[null,494,{"$f":"'Мониторинг оценок'!C497&COUNTIF('Мониторинг оценок'!$C$4:C497,'Мониторинг оценок'!C497)","v":"0"}]
[null,495,{"$f":"'Мониторинг оценок'!C498&COUNTIF('Мониторинг оценок'!$C$4:C498,'Мониторинг оценок'!C498)","v":"0"}]
[null,496,{"$f":"'Мониторинг оценок'!C499&COUNTIF('Мониторинг оценок'!$C$4:C499,'Мониторинг оценок'!C499)","v":"0"}]
[null,497,{"$f":"'Мониторинг оценок'!C500&COUNTIF('Мониторинг оценок'!$C$4:C500,'Мониторинг оценок'!C500)","v":"0"}]
[null,498,{"$f":"'Мониторинг оценок'!C501&COUNTIF('Мониторинг оценок'!$C$4:C501,'Мониторинг оценок'!C501)","v":"0"}]
[null,499,{"$f":"'Мониторинг оценок'!C502&COUNTIF('Мониторинг оценок'!$C$4:C502,'Мониторинг оценок'!C502)","v":"0"}]
[null,500,{"$f":"'Мониторинг оценок'!C503&COUNTIF('Мониторинг оценок'!$C$4:C503,'Мониторинг оценок'!C503)","v":"0"}]
[null,501,{"$f":"'Мониторинг оценок'!C504&COUNTIF('Мониторинг оценок'!$C$4:C504,'Мониторинг оценок'!C504)","v":"0"}]
[null,502,{"$f":"'Мониторинг оценок'!C505&COUNTIF('Мониторинг оценок'!$C$4:C505,'Мониторинг оценок'!C505)","v":"0"}]
[null,503,{"$f":"'Мониторинг оценок'!C506&COUNTIF('Мониторинг оценок'!$C$4:C506,'Мониторинг оценок'!C506)","v":"0"}]
[null,504,{"$f":"'Мониторинг оценок'!C507&COUNTIF('Мониторинг оценок'!$C$4:C507,'Мониторинг оценок'!C507)","v":"0"}]
[null,505,{"$f":"'Мониторинг оценок'!C508&COUNTIF('Мониторинг оценок'!$C$4:C508,'Мониторинг оценок'!C508)","v":"0"}]
[null,506,{"$f":"'Мониторинг оценок'!C509&COUNTIF('Мониторинг оценок'!$C$4:C509,'Мониторинг оценок'!C509)","v":"0"}]
[null,507,{"$f":"'Мониторинг оценок'!C510&COUNTIF('Мониторинг оценок'!$C$4:C510,'Мониторинг оценок'!C510)","v":"0"}]
[null,508,{"$f":"'Мониторинг оценок'!C511&COUNTIF('Мониторинг оценок'!$C$4:C511,'Мониторинг оценок'!C511)","v":"0"}]
[null,509,{"$f":"'Мониторинг оценок'!C512&COUNTIF('Мониторинг оценок'!$C$4:C512,'Мониторинг оценок'!C512)","v":"0"}]
[null,510,{"$f":"'Мониторинг оценок'!C513&COUNTIF('Мониторинг оценок'!$C$4:C513,'Мониторинг оценок'!C513)","v":"0"}]
[null,511,{"$f":"'Мониторинг оценок'!C514&COUNTIF('Мониторинг оценок'!$C$4:C514,'Мониторинг оценок'!C514)","v":"0"}]
[null,512,{"$f":"'Мониторинг оценок'!C515&COUNTIF('Мониторинг оценок'!$C$4:C515,'Мониторинг оценок'!C515)","v":"0"}]
[null,513,{"$f":"'Мониторинг оценок'!C516&COUNTIF('Мониторинг оценок'!$C$4:C516,'Мониторинг оценок'!C516)","v":"0"}]
[null,514,{"$f":"'Мониторинг оценок'!C517&COUNTIF('Мониторинг оценок'!$C$4:C517,'Мониторинг оценок'!C517)","v":"0"}]
[null,515,{"$f":"'Мониторинг оценок'!C518&COUNTIF('Мониторинг оценок'!$C$4:C518,'Мониторинг оценок'!C518)","v":"0"}]
[null,516,{"$f":"'Мониторинг оценок'!C519&COUNTIF('Мониторинг оценок'!$C$4:C519,'Мониторинг оценок'!C519)","v":"0"}]
[null,517,{"$f":"'Мониторинг оценок'!C520&COUNTIF('Мониторинг оценок'!$C$4:C520,'Мониторинг оценок'!C520)","v":"0"}]
[null,518,{"$f":"'Мониторинг оценок'!C521&COUNTIF('Мониторинг оценок'!$C$4:C521,'Мониторинг оценок'!C521)","v":"0"}]
[null,519,{"$f":"'Мониторинг оценок'!C522&COUNTIF('Мониторинг оценок'!$C$4:C522,'Мониторинг оценок'!C522)","v":"0"}]
[null,520,{"$f":"'Мониторинг оценок'!C523&COUNTIF('Мониторинг оценок'!$C$4:C523,'Мониторинг оценок'!C523)","v":"0"}]
[null,521,{"$f":"'Мониторинг оценок'!C524&COUNTIF('Мониторинг оценок'!$C$4:C524,'Мониторинг оценок'!C524)","v":"0"}]
[null,522,{"$f":"'Мониторинг оценок'!C525&COUNTIF('Мониторинг оценок'!$C$4:C525,'Мониторинг оценок'!C525)","v":"0"}]
[null,523,{"$f":"'Мониторинг оценок'!C526&COUNTIF('Мониторинг оценок'!$C$4:C526,'Мониторинг оценок'!C526)","v":"0"}]
[null,524,{"$f":"'Мониторинг оценок'!C527&COUNTIF('Мониторинг оценок'!$C$4:C527,'Мониторинг оценок'!C527)","v":"0"}]
[null,525,{"$f":"'Мониторинг оценок'!C528&COUNTIF('Мониторинг оценок'!$C$4:C528,'Мониторинг оценок'!C528)","v":"0"}]
[null,526,{"$f":"'Мониторинг оценок'!C529&COUNTIF('Мониторинг оценок'!$C$4:C529,'Мониторинг оценок'!C529)","v":"0"}]
[null,527,{"$f":"'Мониторинг оценок'!C530&COUNTIF('Мониторинг оценок'!$C$4:C530,'Мониторинг оценок'!C530)","v":"0"}]
[null,528,{"$f":"'Мониторинг оценок'!C531&COUNTIF('Мониторинг оценок'!$C$4:C531,'Мониторинг оценок'!C531)","v":"0"}]
[null,529,{"$f":"'Мониторинг оценок'!C532&COUNTIF('Мониторинг оценок'!$C$4:C532,'Мониторинг оценок'!C532)","v":"0"}]
[null,530,{"$f":"'Мониторинг оценок'!C533&COUNTIF('Мониторинг оценок'!$C$4:C533,'Мониторинг оценок'!C533)","v":"0"}]
[null,531,{"$f":"'Мониторинг оценок'!C534&COUNTIF('Мониторинг оценок'!$C$4:C534,'Мониторинг оценок'!C534)","v":"0"}]
[null,532,{"$f":"'Мониторинг оценок'!C535&COUNTIF('Мониторинг оценок'!$C$4:C535,'Мониторинг оценок'!C535)","v":"0"}]
[null,533,{"$f":"'Мониторинг оценок'!C536&COUNTIF('Мониторинг оценок'!$C$4:C536,'Мониторинг оценок'!C536)","v":"0"}]
[null,534,{"$f":"'Мониторинг оценок'!C537&COUNTIF('Мониторинг оценок'!$C$4:C537,'Мониторинг оценок'!C537)","v":"0"}]
[null,535,{"$f":"'Мониторинг оценок'!C538&COUNTIF('Мониторинг оценок'!$C$4:C538,'Мониторинг оценок'!C538)","v":"0"}]
[null,536,{"$f":"'Мониторинг оценок'!C539&COUNTIF('Мониторинг оценок'!$C$4:C539,'Мониторинг оценок'!C539)","v":"0"}]
[null,537,{"$f":"'Мониторинг оценок'!C540&COUNTIF('Мониторинг оценок'!$C$4:C540,'Мониторинг оценок'!C540)","v":"0"}]
[null,538,{"$f":"'Мониторинг оценок'!C541&COUNTIF('Мониторинг оценок'!$C$4:C541,'Мониторинг оценок'!C541)","v":"0"}]
[null,539,{"$f":"'Мониторинг оценок'!C542&COUNTIF('Мониторинг оценок'!$C$4:C542,'Мониторинг оценок'!C542)","v":"0"}]
[null,540,{"$f":"'Мониторинг оценок'!C543&COUNTIF('Мониторинг оценок'!$C$4:C543,'Мониторинг оценок'!C543)","v":"0"}]
[null,541,{"$f":"'Мониторинг оценок'!C544&COUNTIF('Мониторинг оценок'!$C$4:C544,'Мониторинг оценок'!C544)","v":"0"}]
[null,542,{"$f":"'Мониторинг оценок'!C545&COUNTIF('Мониторинг оценок'!$C$4:C545,'Мониторинг оценок'!C545)","v":"0"}]
[null,543,{"$f":"'Мониторинг оценок'!C546&COUNTIF('Мониторинг оценок'!$C$4:C546,'Мониторинг оценок'!C546)","v":"0"}]
[null,544,{"$f":"'Мониторинг оценок'!C547&COUNTIF('Мониторинг оценок'!$C$4:C547,'Мониторинг оценок'!C547)","v":"0"}]
[null,545,{"$f":"'Мониторинг оценок'!C548&COUNTIF('Мониторинг оценок'!$C$4:C548,'Мониторинг оценок'!C548)","v":"0"}]
[null,546,{"$f":"'Мониторинг оценок'!C549&COUNTIF('Мониторинг оценок'!$C$4:C549,'Мониторинг оценок'!C549)","v":"0"}]
[null,547,{"$f":"'Мониторинг оценок'!C550&COUNTIF('Мониторинг оценок'!$C$4:C550,'Мониторинг оценок'!C550)","v":"0"}]
[null,548,{"$f":"'Мониторинг оценок'!C551&COUNTIF('Мониторинг оценок'!$C$4:C551,'Мониторинг оценок'!C551)","v":"0"}]
[null,549,{"$f":"'Мониторинг оценок'!C552&COUNTIF('Мониторинг оценок'!$C$4:C552,'Мониторинг оценок'!C552)","v":"0"}]
[null,550,{"$f":"'Мониторинг оценок'!C553&COUNTIF('Мониторинг оценок'!$C$4:C553,'Мониторинг оценок'!C553)","v":"0"}]
[null,551,{"$f":"'Мониторинг оценок'!C554&COUNTIF('Мониторинг оценок'!$C$4:C554,'Мониторинг оценок'!C554)","v":"0"}]
[null,552,{"$f":"'Мониторинг оценок'!C555&COUNTIF('Мониторинг оценок'!$C$4:C555,'Мониторинг оценок'!C555)","v":"0"}]
[null,553,{"$f":"'Мониторинг оценок'!C556&COUNTIF('Мониторинг оценок'!$C$4:C556,'Мониторинг оценок'!C556)","v":"0"}]
[null,554,{"$f":"'Мониторинг оценок'!C557&COUNTIF('Мониторинг оценок'!$C$4:C557,'Мониторинг оценок'!C557)","v":"0"}]
[null,555,{"$f":"'Мониторинг оценок'!C558&COUNTIF('Мониторинг оценок'!$C$4:C558,'Мониторинг оценок'!C558)","v":"0"}]
[null,556,{"$f":"'Мониторинг оценок'!C559&COUNTIF('Мониторинг оценок'!$C$4:C559,'Мониторинг оценок'!C559)","v":"0"}]
[null,557,{"$f":"'Мониторинг оценок'!C560&COUNTIF('Мониторинг оценок'!$C$4:C560,'Мониторинг оценок'!C560)","v":"0"}]
[null,558,{"$f":"'Мониторинг оценок'!C561&COUNTIF('Мониторинг оценок'!$C$4:C561,'Мониторинг оценок'!C561)","v":"0"}]
[null,559,{"$f":"'Мониторинг оценок'!C562&COUNTIF('Мониторинг оценок'!$C$4:C562,'Мониторинг оценок'!C562)","v":"0"}]
[null,560,{"$f":"'Мониторинг оценок'!C563&COUNTIF('Мониторинг оценок'!$C$4:C563,'Мониторинг оценок'!C563)","v":"0"}]
[null,561,{"$f":"'Мониторинг оценок'!C564&COUNTIF('Мониторинг оценок'!$C$4:C564,'Мониторинг оценок'!C564)","v":"0"}]
[null,562,{"$f":"'Мониторинг оценок'!C565&COUNTIF('Мониторинг оценок'!$C$4:C565,'Мониторинг оценок'!C565)","v":"0"}]
[null,563,{"$f":"'Мониторинг оценок'!C566&COUNTIF('Мониторинг оценок'!$C$4:C566,'Мониторинг оценок'!C566)","v":"0"}]
[null,564,{"$f":"'Мониторинг оценок'!C567&COUNTIF('Мониторинг оценок'!$C$4:C567,'Мониторинг оценок'!C567)","v":"0"}]
[null,565,{"$f":"'Мониторинг оценок'!C568&COUNTIF('Мониторинг оценок'!$C$4:C568,'Мониторинг оценок'!C568)","v":"0"}]
[null,566,{"$f":"'Мониторинг оценок'!C569&COUNTIF('Мониторинг оценок'!$C$4:C569,'Мониторинг оценок'!C569)","v":"0"}]
[null,567,{"$f":"'Мониторинг оценок'!C570&COUNTIF('Мониторинг оценок'!$C$4:C570,'Мониторинг оценок'!C570)","v":"0"}]
[null,568,{"$f":"'Мониторинг оценок'!C571&COUNTIF('Мониторинг оценок'!$C$4:C571,'Мониторинг оценок'!C571)","v":"0"}]
[null,569,{"$f":"'Мониторинг оценок'!C572&COUNTIF('Мониторинг оценок'!$C$4:C572,'Мониторинг оценок'!C572)","v":"0"}]
[null,570,{"$f":"'Мониторинг оценок'!C573&COUNTIF('Мониторинг оценок'!$C$4:C573,'Мониторинг оценок'!C573)","v":"0"}]
[null,571,{"$f":"'Мониторинг оценок'!C574&COUNTIF('Мониторинг оценок'!$C$4:C574,'Мониторинг оценок'!C574)","v":"0"}]
[null,572,{"$f":"'Мониторинг оценок'!C575&COUNTIF('Мониторинг оценок'!$C$4:C575,'Мониторинг оценок'!C575)","v":"0"}]
[null,573,{"$f":"'Мониторинг оценок'!C576&COUNTIF('Мониторинг оценок'!$C$4:C576,'Мониторинг оценок'!C576)","v":"0"}]
[null,574,{"$f":"'Мониторинг оценок'!C577&COUNTIF('Мониторинг оценок'!$C$4:C577,'Мониторинг оценок'!C577)","v":"0"}]
[null,575,{"$f":"'Мониторинг оценок'!C578&COUNTIF('Мониторинг оценок'!$C$4:C578,'Мониторинг оценок'!C578)","v":"0"}]
[null,576,{"$f":"'Мониторинг оценок'!C579&COUNTIF('Мониторинг оценок'!$C$4:C579,'Мониторинг оценок'!C579)","v":"0"}]
[null,577,{"$f":"'Мониторинг оценок'!C580&COUNTIF('Мониторинг оценок'!$C$4:C580,'Мониторинг оценок'!C580)","v":"0"}]
[null,578,{"$f":"'Мониторинг оценок'!C581&COUNTIF('Мониторинг оценок'!$C$4:C581,'Мониторинг оценок'!C581)","v":"0"}]
[null,579,{"$f":"'Мониторинг оценок'!C582&COUNTIF('Мониторинг оценок'!$C$4:C582,'Мониторинг оценок'!C582)","v":"0"}]
[null,580,{"$f":"'Мониторинг оценок'!C583&COUNTIF('Мониторинг оценок'!$C$4:C583,'Мониторинг оценок'!C583)","v":"0"}]
[null,581,{"$f":"'Мониторинг оценок'!C584&COUNTIF('Мониторинг оценок'!$C$4:C584,'Мониторинг оценок'!C584)","v":"0"}]
[null,582,{"$f":"'Мониторинг оценок'!C585&COUNTIF('Мониторинг оценок'!$C$4:C585,'Мониторинг оценок'!C585)","v":"0"}]
[null,583,{"$f":"'Мониторинг оценок'!C586&COUNTIF('Мониторинг оценок'!$C$4:C586,'Мониторинг оценок'!C586)","v":"0"}]
[null,584,{"$f":"'Мониторинг оценок'!C587&COUNTIF('Мониторинг оценок'!$C$4:C587,'Мониторинг оценок'!C587)","v":"0"}]
[null,585,{"$f":"'Мониторинг оценок'!C588&COUNTIF('Мониторинг оценок'!$C$4:C588,'Мониторинг оценок'!C588)","v":"0"}]
[null,586,{"$f":"'Мониторинг оценок'!C589&COUNTIF('Мониторинг оценок'!$C$4:C589,'Мониторинг оценок'!C589)","v":"0"}]
[null,587,{"$f":"'Мониторинг оценок'!C590&COUNTIF('Мониторинг оценок'!$C$4:C590,'Мониторинг оценок'!C590)","v":"0"}]
[null,588,{"$f":"'Мониторинг оценок'!C591&COUNTIF('Мониторинг оценок'!$C$4:C591,'Мониторинг оценок'!C591)","v":"0"}]
[null,589,{"$f":"'Мониторинг оценок'!C592&COUNTIF('Мониторинг оценок'!$C$4:C592,'Мониторинг оценок'!C592)","v":"0"}]
[null,590,{"$f":"'Мониторинг оценок'!C593&COUNTIF('Мониторинг оценок'!$C$4:C593,'Мониторинг оценок'!C593)","v":"0"}]
[null,591,{"$f":"'Мониторинг оценок'!C594&COUNTIF('Мониторинг оценок'!$C$4:C594,'Мониторинг оценок'!C594)","v":"0"}]
[null,592,{"$f":"'Мониторинг оценок'!C595&COUNTIF('Мониторинг оценок'!$C$4:C595,'Мониторинг оценок'!C595)","v":"0"}]
[null,593,{"$f":"'Мониторинг оценок'!C596&COUNTIF('Мониторинг оценок'!$C$4:C596,'Мониторинг оценок'!C596)","v":"0"}]
[null,594,{"$f":"'Мониторинг оценок'!C597&COUNTIF('Мониторинг оценок'!$C$4:C597,'Мониторинг оценок'!C597)","v":"0"}]
[null,595,{"$f":"'Мониторинг оценок'!C598&COUNTIF('Мониторинг оценок'!$C$4:C598,'Мониторинг оценок'!C598)","v":"0"}]
[null,596,{"$f":"'Мониторинг оценок'!C599&COUNTIF('Мониторинг оценок'!$C$4:C599,'Мониторинг оценок'!C599)","v":"0"}]
[null,597,{"$f":"'Мониторинг оценок'!C600&COUNTIF('Мониторинг оценок'!$C$4:C600,'Мониторинг оценок'!C600)","v":"0"}]
[null,598,{"$f":"'Мониторинг оценок'!C601&COUNTIF('Мониторинг оценок'!$C$4:C601,'Мониторинг оценок'!C601)","v":"0"}]
[null,599,{"$f":"'Мониторинг оценок'!C602&COUNTIF('Мониторинг оценок'!$C$4:C602,'Мониторинг оценок'!C602)","v":"0"}]
[null,600,{"$f":"'Мониторинг оценок'!C603&COUNTIF('Мониторинг оценок'!$C$4:C603,'Мониторинг оценок'!C603)","v":"0"}]
[null,601,{"$f":"'Мониторинг оценок'!C604&COUNTIF('Мониторинг оценок'!$C$4:C604,'Мониторинг оценок'!C604)","v":"0"}]
[null,602,{"$f":"'Мониторинг оценок'!C605&COUNTIF('Мониторинг оценок'!$C$4:C605,'Мониторинг оценок'!C605)","v":"0"}]
[null,603,{"$f":"'Мониторинг оценок'!C606&COUNTIF('Мониторинг оценок'!$C$4:C606,'Мониторинг оценок'!C606)","v":"0"}]
[null,604,{"$f":"'Мониторинг оценок'!C607&COUNTIF('Мониторинг оценок'!$C$4:C607,'Мониторинг оценок'!C607)","v":"0"}]
[null,605,{"$f":"'Мониторинг оценок'!C608&COUNTIF('Мониторинг оценок'!$C$4:C608,'Мониторинг оценок'!C608)","v":"0"}]
[null,606,{"$f":"'Мониторинг оценок'!C609&COUNTIF('Мониторинг оценок'!$C$4:C609,'Мониторинг оценок'!C609)","v":"0"}]
[null,607,{"$f":"'Мониторинг оценок'!C610&COUNTIF('Мониторинг оценок'!$C$4:C610,'Мониторинг оценок'!C610)","v":"0"}]
[null,608,{"$f":"'Мониторинг оценок'!C611&COUNTIF('Мониторинг оценок'!$C$4:C611,'Мониторинг оценок'!C611)","v":"0"}]
[null,609,{"$f":"'Мониторинг оценок'!C612&COUNTIF('Мониторинг оценок'!$C$4:C612,'Мониторинг оценок'!C612)","v":"0"}]
[null,610,{"$f":"'Мониторинг оценок'!C613&COUNTIF('Мониторинг оценок'!$C$4:C613,'Мониторинг оценок'!C613)","v":"0"}]
[null,611,{"$f":"'Мониторинг оценок'!C614&COUNTIF('Мониторинг оценок'!$C$4:C614,'Мониторинг оценок'!C614)","v":"0"}]
[null,612,{"$f":"'Мониторинг оценок'!C615&COUNTIF('Мониторинг оценок'!$C$4:C615,'Мониторинг оценок'!C615)","v":"0"}]
[null,613,{"$f":"'Мониторинг оценок'!C616&COUNTIF('Мониторинг оценок'!$C$4:C616,'Мониторинг оценок'!C616)","v":"0"}]
[null,614,{"$f":"'Мониторинг оценок'!C617&COUNTIF('Мониторинг оценок'!$C$4:C617,'Мониторинг оценок'!C617)","v":"0"}]
[null,615,{"$f":"'Мониторинг оценок'!C618&COUNTIF('Мониторинг оценок'!$C$4:C618,'Мониторинг оценок'!C618)","v":"0"}]
[null,616,{"$f":"'Мониторинг оценок'!C619&COUNTIF('Мониторинг оценок'!$C$4:C619,'Мониторинг оценок'!C619)","v":"0"}]
[null,617,{"$f":"'Мониторинг оценок'!C620&COUNTIF('Мониторинг оценок'!$C$4:C620,'Мониторинг оценок'!C620)","v":"0"}]
[null,618,{"$f":"'Мониторинг оценок'!C621&COUNTIF('Мониторинг оценок'!$C$4:C621,'Мониторинг оценок'!C621)","v":"0"}]
[null,619,{"$f":"'Мониторинг оценок'!C622&COUNTIF('Мониторинг оценок'!$C$4:C622,'Мониторинг оценок'!C622)","v":"0"}]
[null,620,{"$f":"'Мониторинг оценок'!C623&COUNTIF('Мониторинг оценок'!$C$4:C623,'Мониторинг оценок'!C623)","v":"0"}]
[null,621,{"$f":"'Мониторинг оценок'!C624&COUNTIF('Мониторинг оценок'!$C$4:C624,'Мониторинг оценок'!C624)","v":"0"}]
[null,622,{"$f":"'Мониторинг оценок'!C625&COUNTIF('Мониторинг оценок'!$C$4:C625,'Мониторинг оценок'!C625)","v":"0"}]
[null,623,{"$f":"'Мониторинг оценок'!C626&COUNTIF('Мониторинг оценок'!$C$4:C626,'Мониторинг оценок'!C626)","v":"0"}]
[null,624,{"$f":"'Мониторинг оценок'!C627&COUNTIF('Мониторинг оценок'!$C$4:C627,'Мониторинг оценок'!C627)","v":"0"}]
[null,625,{"$f":"'Мониторинг оценок'!C628&COUNTIF('Мониторинг оценок'!$C$4:C628,'Мониторинг оценок'!C628)","v":"0"}]